Workbook

Sheet القائمة
A1: أسماء المقاولين | B1: الكلاستر | C1: الصوبة | D1: العملية | F1: =+F2-تفرير!I4 -> 0 | G1: المقاول | H1: المبلغ
A2: خالد مهدى | B2: 2 | C2: A | D2: 1 | E2: 1حفر وردم 10%0 | F2: =SUM(H2:H22) -> 66900 | G2: =+A2 -> خالد مهدى | H2: =SUMIF(الشغل!$L$5:$M$197,$G2,الشغل!$M$5:$M$1226) -> 66900
A3: إيهاب | B3: 6 | C3: B | D3: 2 | E3: 2بناء ومحارة وعزل40%0 | G3: =+A3 -> إيهاب | H3: =SUMIF(الشغل!$L$5:$M$197,$G3,الشغل!$M$5:$M$1226) -> 0
B4: 13 | C4: C | D4: 3 | E4: 3عـــــــــــــــــزل35%0 | G4: 0 | H4: =SUMIF(الشغل!$L$5:$M$197,$G4,الشغل!$M$5:$M$1226) -> 0 | I4: =(0.2+0.44+0.68+0.64+0.44+0.52+0.48+0.2+0.32+0.52+0.44+0.28) -> 5.16 | J4: 1400 | K4: =+I4*J4 -> 7224
B5: 22 | C5: D | D5: 4 | E5: 4مواسير صرف ورى5%0 | G5: 0 | H5: =SUMIF(الشغل!$L$5:$M$197,$G5,الشغل!$M$5:$M$1226) -> 0
B6: 32 | C6: E | D6: 5 | E6: 5سورالخارجى10%0 | G6: 0 | H6: =SUMIF(الشغل!$L$5:$M$197,$G6,الشغل!$M$5:$M$1226) -> 0
B7: 33 | C7: F | G7: 0 | H7: =SUMIF(الشغل!$L$5:$M$197,$G7,الشغل!$M$5:$M$1226) -> 0 | I7: =(2+2+8+1+8+4+4)*160 -> 4640
B8: 23 | G8: 0 | H8: =SUMIF(الشغل!$L$5:$M$197,$G8,الشغل!$M$5:$M$1226) -> 0
B9: 34 | G9: 0 | H9: =SUMIF(الشغل!$L$5:$M$197,$G9,الشغل!$M$5:$M$1226) -> 0
B10: 24 | G10: 0 | H10: =SUMIF(الشغل!$L$5:$M$197,$G10,الشغل!$M$5:$M$1226) -> 0
B11: 8 | G11: 0 | H11: =SUMIF(الشغل!$L$5:$M$197,$G11,الشغل!$M$5:$M$1226) -> 0 | I11: =(0.8+0.56+0.08+0.24+0.28+0.44+0.32+0.32+0.16+0.8+0.48+0.4+0.24+0.36+0.32+0.52+1+0.16+0.2+0.28+0.48+0.4+0.24)*1400+12712+21600 -> 47024 | J11: =1600*75/100 -> 1200 | K11: =+J11*18 -> 21600 | L11: 9.08 | M11: =+L11*1400 -> 12712
B12: 88 | G12: 0 | H12: =SUMIF(الشغل!$L$5:$M$197,$G12,الشغل!$M$5:$M$1226) -> 0
B13: 47 | G13: 0 | H13: =SUMIF(الشغل!$L$5:$M$197,$G13,الشغل!$M$5:$M$1226) -> 0
B14: 48 | G14: 0 | H14: =SUMIF(الشغل!$L$5:$M$197,$G14,الشغل!$M$5:$M$1226) -> 0
B15: 63 | G15: 0 | H15: =SUMIF(الشغل!$L$5:$M$197,$G15,الشغل!$M$5:$M$1226) -> 0
B16: 83 | G16: 0 | H16: =SUMIF(الشغل!$L$5:$M$197,$G16,الشغل!$M$5:$M$1226) -> 0
B17: 67 | G17: 0 | H17: =SUMIF(الشغل!$L$5:$M$197,$G17,الشغل!$M$5:$M$1226) -> 0
B18: 87 | G18: 0 | H18: =SUMIF(الشغل!$L$5:$M$197,$G18,الشغل!$M$5:$M$1226) -> 0
B19: 66 | G19: =+A19 -> 0 | H19: =SUMIF(الشغل!$L$5:$M$197,$G19,الشغل!$M$5:$M$1226) -> 0
B20: 86 | G20: 0 | H20: =SUMIF(الشغل!$L$5:$M$197,$G20,الشغل!$M$5:$M$1226) -> 0
B21: 88 | G21: 0 | H21: =SUMIF(الشغل!$L$5:$M$197,$G21,الشغل!$M$5:$M$1226) -> 0
B22: 58 | G22: 0 | H22: =SUMIF(الشغل!$L$5:$M$197,$G22,الشغل!$M$5:$M$1226) -> 0
B23: 56
B24: 57

Sheet النسب
A2: النسبة المؤية | B2: النسبة العامة | C2: المبلغ | D2: اسم البند | E2: النسبة | F2: العمل | G2: القيمة المستحقة | H2: النسبة المؤية | I2: النسبة العامة | J2: المبلغ | K2: اسم البند | L2: النسبة | M2: العمل | N2: القيمة المستحقة | O2: النسبة المؤية | P2: النسبة العامة | Q2: المبلغ | R2: اسم البند | S2: النسبة | T2: العمل | U2: القيمة المستحقة | V2: النسبة المؤية | W2: النسبة العامة | X2: المبلغ | Y2: اسم البند | Z2: النسبة | AA2: العمل | AB2: القيمة المستحقة | AC2: النسبة المؤية | AD2: النسبة العامة | AE2: المبلغ | AF2: اسم البند | AG2: النسبة | AH2: العمل | AI2: القيمة المستحقة
A3: 0 | B3: 0 | C3: 0 | D3: 0 | E3: 0 | F3: 0 | G3: 0 | H3: 0 | I3: 0 | J3: 0 | K3: 0 | L3: 0 | M3: 0 | N3: 0 | O3: 0 | P3: 0 | Q3: 0 | R3: 0 | S3: 0 | T3: 0 | U3: 0 | V3: 0 | W3: 0 | X3: 0 | Y3: 0 | Z3: 0 | AA3: 0 | AB3: 0 | AC3: 0 | AD3: 0 | AE3: 0 | AF3: 0 | AG3: 0 | AH3: 0 | AI3: 0
A4: 0.05 | B4: 5 | C4: 4000 | D4: حفروردم 10% | E4: =100/10 -> 10 | F4: =+B4/E4 -> 0.5 | G4: =+C4*A4 -> 200 | H4: 0.05 | I4: 5 | J4: 16000 | K4: بناء محارة وعزل40% | L4: =100/40 -> 2.5 | M4: =+B4/L4 -> 2 | N4: =+J4*A4 -> 800 | O4: 0.05 | P4: 5 | Q4: 14000 | R4: عزل 35% | S4: =100/35 -> 2.857142857 | T4: =+P4/S4 -> 1.75 | U4: =+Q4*O4 -> 700 | V4: 0.05 | W4: 5 | X4: 2000 | Y4: مواسير صرف ورى5% | Z4: =100/5 -> 20 | AA4: =+W4/Z4 -> 0.25 | AB4: =+X4*V4 -> 100 | AC4: 0.05 | AD4: 5 | AE4: 4000 | AF4: سور10% | AG4: =100/10 -> 10 | AH4: =+AD4/AG4 -> 0.5 | AI4: =+AE4*AC4 -> 200
A5: 0.1 | B5: 10 | C5: =+C4 -> 4000 | D5: =+D4 -> حفروردم 10% | E5: =+E4 -> 10 | F5: 1 | G5: 400 | H5: 0.1 | I5: 10 | J5: =+J4 -> 16000 | K5: =+K4 -> بناء محارة وعزل40% | L5: =+L4 -> 2.5 | M5: =+B5/L5 -> 4 | N5: =+J5*A5 -> 1600 | O5: 0.1 | P5: 10 | Q5: =+Q4 -> 14000 | R5: =+R4 -> عزل 35% | S5: =+S4 -> 2.857142857 | T5: 3.5 | U5: 1400 | V5: 0.1 | W5: 10 | X5: =+X4 -> 2000 | Y5: =+Y4 -> مواسير صرف ورى5% | Z5: =+Z4 -> 20 | AA5: 0.5 | AB5: 200 | AC5: 0.1 | AD5: 10 | AE5: =+AE4 -> 4000 | AF5: =+AF4 -> سور10% | AG5: =+AG4 -> 10 | AH5: 1 | AI5: 400
A6: 0.15 | B6: 15 | C6: =+C5 -> 4000 | D6: حفروردم 10% | E6: 10 | F6: 1.5 | G6: 600 | H6: 0.15 | I6: 15 | J6: =+J5 -> 16000 | K6: بناء محارة وعزل40% | L6: 2.5 | M6: 6 | N6: 2400 | O6: 0.15 | P6: 15 | Q6: =+Q5 -> 14000 | R6: عزل 35% | S6: 2.857142857 | T6: 5.25 | U6: 2100 | V6: 0.15 | W6: 15 | X6: =+X5 -> 2000 | Y6: مواسير صرف ورى5% | Z6: 20 | AA6: 0.75 | AB6: 300 | AC6: 0.15 | AD6: 15 | AE6: =+AE5 -> 4000 | AF6: سور10% | AG6: 10 | AH6: 1.5 | AI6: 600
A7: 0.2 | B7: 20 | C7: 4000 | D7: حفروردم 10% | E7: 10 | F7: 2 | G7: 800 | H7: 0.2 | I7: 20 | J7: 16000 | K7: بناء محارة وعزل40% | L7: 2.5 | M7: 8 | N7: 3200 | O7: 0.2 | P7: 20 | Q7: =+Q6 -> 14000 | R7: عزل 35% | S7: 2.857142857 | T7: 7 | U7: 2800 | V7: 0.2 | W7: 20 | X7: =+X6 -> 2000 | Y7: مواسير صرف ورى5% | Z7: 20 | AA7: 1 | AB7: 400 | AC7: 0.2 | AD7: 20 | AE7: =+AE6 -> 4000 | AF7: سور10% | AG7: 10 | AH7: 2 | AI7: 800
A8: 0.25 | B8: 25 | C8: 4000 | D8: حفروردم 10% | E8: 10 | F8: 2.5 | G8: 1000 | H8: 0.25 | I8: 25 | J8: 16000 | K8: بناء محارة وعزل40% | L8: 2.5 | M8: 10 | N8: 4000 | O8: 0.25 | P8: 25 | Q8: =+Q7 -> 14000 | R8: عزل 35% | S8: 2.857142857 | T8: 8.75 | U8: 3500 | V8: 0.25 | W8: 25 | X8: =+X7 -> 2000 | Y8: مواسير صرف ورى5% | Z8: 20 | AA8: 1.25 | AB8: 500 | AC8: 0.25 | AD8: 25 | AE8: =+AE7 -> 4000 | AF8: سور10% | AG8: 10 | AH8: 2.5 | AI8: 1000
A9: 0.3 | B9: 30 | C9: 4000 | D9: حفروردم 10% | E9: 10 | F9: 3 | G9: 1200 | H9: 0.3 | I9: 30 | J9: 16000 | K9: بناء محارة وعزل40% | L9: 2.5 | M9: 12 | N9: 4800 | O9: 0.3 | P9: 30 | Q9: =+Q8 -> 14000 | R9: عزل 35% | S9: 2.857142857 | T9: 10.5 | U9: 4200 | V9: 0.3 | W9: 30 | X9: =+X8 -> 2000 | Y9: مواسير صرف ورى5% | Z9: 20 | AA9: 1.5 | AB9: 600 | AC9: 0.3 | AD9: 30 | AE9: =+AE8 -> 4000 | AF9: سور10% | AG9: 10 | AH9: 3 | AI9: 1200
A10: 0.35 | B10: 35 | C10: 4000 | D10: حفروردم 10% | E10: 10 | F10: 3.5 | G10: 1400 | H10: 0.35 | I10: 35 | J10: 16000 | K10: بناء محارة وعزل40% | L10: 2.5 | M10: 14 | N10: 5600 | O10: 0.35 | P10: 35 | Q10: =+Q9 -> 14000 | R10: عزل 35% | S10: 2.857142857 | T10: 12.25 | U10: 4900 | V10: 0.35 | W10: 35 | X10: =+X9 -> 2000 | Y10: مواسير صرف ورى5% | Z10: 20 | AA10: 1.75 | AB10: 700 | AC10: 0.35 | AD10: 35 | AE10: =+AE9 -> 4000 | AF10: سور10% | AG10: 10 | AH10: 3.5 | AI10: 1400
A11: 0.4 | B11: 40 | C11: 4000 | D11: حفروردم 10% | E11: 10 | F11: 4 | G11: 1600 | H11: 0.4 | I11: 40 | J11: 16000 | K11: بناء محارة وعزل40% | L11: 2.5 | M11: 16 | N11: 6400 | O11: 0.4 | P11: 40 | Q11: =+Q10 -> 14000 | R11: عزل 35% | S11: 2.857142857 | T11: 14 | U11: 5600 | V11: 0.4 | W11: 40 | X11: =+X10 -> 2000 | Y11: مواسير صرف ورى5% | Z11: 20 | AA11: 2 | AB11: 800 | AC11: 0.4 | AD11: 40 | AE11: =+AE10 -> 4000 | AF11: سور10% | AG11: 10 | AH11: 4 | AI11: 1600
A12: 0.45 | B12: 45 | C12: 4000 | D12: حفروردم 10% | E12: 10 | F12: 4.5 | G12: 1800 | H12: 0.45 | I12: 45 | J12: 16000 | K12: بناء محارة وعزل40% | L12: 2.5 | M12: 18 | N12: 7200 | O12: 0.45 | P12: 45 | Q12: =+Q11 -> 14000 | R12: عزل 35% | S12: 2.857142857 | T12: 15.75 | U12: 6300 | V12: 0.45 | W12: 45 | X12: =+X11 -> 2000 | Y12: مواسير صرف ورى5% | Z12: 20 | AA12: 2.25 | AB12: 900 | AC12: 0.45 | AD12: 45 | AE12: =+AE11 -> 4000 | AF12: سور10% | AG12: 10 | AH12: 4.5 | AI12: 1800
A13: 0.5 | B13: 50 | C13: 4000 | D13: حفروردم 10% | E13: 10 | F13: 5 | G13: 2000 | H13: 0.5 | I13: 50 | J13: 16000 | K13: بناء محارة وعزل40% | L13: 2.5 | M13: 20 | N13: 8000 | O13: 0.5 | P13: 50 | Q13: =+Q12 -> 14000 | R13: عزل 35% | S13: 2.857142857 | T13: 17.5 | U13: 7000 | V13: 0.5 | W13: 50 | X13: =+X12 -> 2000 | Y13: مواسير صرف ورى5% | Z13: 20 | AA13: 2.5 | AB13: 1000 | AC13: 0.5 | AD13: 50 | AE13: =+AE12 -> 4000 | AF13: سور10% | AG13: 10 | AH13: 5 | AI13: 2000
A14: 0.55 | B14: 55 | C14: 4000 | D14: حفروردم 10% | E14: 10 | F14: 5.5 | G14: 2200 | H14: 0.55 | I14: 55 | J14: 16000 | K14: بناء محارة وعزل40% | L14: 2.5 | M14: 22 | N14: 8800 | O14: 0.55 | P14: 55 | Q14: =+Q13 -> 14000 | R14: عزل 35% | S14: 2.857142857 | T14: 19.25 | U14: 7700 | V14: 0.55 | W14: 55 | X14: =+X13 -> 2000 | Y14: مواسير صرف ورى5% | Z14: 20 | AA14: 2.75 | AB14: 1100 | AC14: 0.55 | AD14: 55 | AE14: =+AE13 -> 4000 | AF14: سور10% | AG14: 10 | AH14: 5.5 | AI14: 2200
A15: 0.6 | B15: 60 | C15: 4000 | D15: حفروردم 10% | E15: 10 | F15: 6 | G15: 2400 | H15: 0.6 | I15: 60 | J15: 16000 | K15: بناء محارة وعزل40% | L15: 2.5 | M15: 24 | N15: 9600 | O15: 0.6 | P15: 60 | Q15: =+Q14 -> 14000 | R15: عزل 35% | S15: 2.857142857 | T15: 21 | U15: 8400 | V15: 0.6 | W15: 60 | X15: =+X14 -> 2000 | Y15: مواسير صرف ورى5% | Z15: 20 | AA15: 3 | AB15: 1200 | AC15: 0.6 | AD15: 60 | AE15: =+AE14 -> 4000 | AF15: سور10% | AG15: 10 | AH15: 6 | AI15: 2400
A16: 0.65 | B16: 65 | C16: 4000 | D16: حفروردم 10% | E16: 10 | F16: 6.5 | G16: 2600 | H16: 0.65 | I16: 65 | J16: 16000 | K16: بناء محارة وعزل40% | L16: 2.5 | M16: 26 | N16: 10400 | O16: 0.65 | P16: 65 | Q16: =+Q15 -> 14000 | R16: عزل 35% | S16: 2.857142857 | T16: 22.75 | U16: 9100 | V16: 0.65 | W16: 65 | X16: =+X15 -> 2000 | Y16: مواسير صرف ورى5% | Z16: 20 | AA16: 3.25 | AB16: 1300 | AC16: 0.65 | AD16: 65 | AE16: =+AE15 -> 4000 | AF16: سور10% | AG16: 10 | AH16: 6.5 | AI16: 2600
A17: 0.7 | B17: 70 | C17: 4000 | D17: حفروردم 10% | E17: 10 | F17: 7 | G17: 2800 | H17: 0.7 | I17: 70 | J17: 16000 | K17: بناء محارة وعزل40% | L17: 2.5 | M17: 28 | N17: 11200 | O17: 0.7 | P17: 70 | Q17: =+Q16 -> 14000 | R17: عزل 35% | S17: 2.857142857 | T17: 24.5 | U17: 9800 | V17: 0.7 | W17: 70 | X17: =+X16 -> 2000 | Y17: مواسير صرف ورى5% | Z17: 20 | AA17: 3.5 | AB17: 1400 | AC17: 0.7 | AD17: 70 | AE17: =+AE16 -> 4000 | AF17: سور10% | AG17: 10 | AH17: 7 | AI17: 2800
A18: 0.75 | B18: 75 | C18: 4000 | D18: حفروردم 10% | E18: 10 | F18: 7.5 | G18: 3000 | H18: 0.75 | I18: 75 | J18: 16000 | K18: بناء محارة وعزل40% | L18: 2.5 | M18: 30 | N18: 12000 | O18: 0.75 | P18: 75 | Q18: =+Q17 -> 14000 | R18: عزل 35% | S18: 2.857142857 | T18: 26.25 | U18: 10500 | V18: 0.75 | W18: 75 | X18: =+X17 -> 2000 | Y18: مواسير صرف ورى5% | Z18: 20 | AA18: 3.75 | AB18: 1500 | AC18: 0.75 | AD18: 75 | AE18: =+AE17 -> 4000 | AF18: سور10% | AG18: 10 | AH18: 7.5 | AI18: 3000
A19: 0.8 | B19: 80 | C19: 4000 | D19: حفروردم 10% | E19: 10 | F19: 8 | G19: 3200 | H19: 0.8 | I19: 80 | J19: 16000 | K19: بناء محارة وعزل40% | L19: 2.5 | M19: 32 | N19: 12800 | O19: 0.8 | P19: 80 | Q19: =+Q18 -> 14000 | R19: عزل 35% | S19: 2.857142857 | T19: 28 | U19: 11200 | V19: 0.8 | W19: 80 | X19: =+X18 -> 2000 | Y19: مواسير صرف ورى5% | Z19: 20 | AA19: 4 | AB19: 1600 | AC19: 0.8 | AD19: 80 | AE19: =+AE18 -> 4000 | AF19: سور10% | AG19: 10 | AH19: 8 | AI19: 3200
A20: 0.85 | B20: 85 | C20: 4000 | D20: حفروردم 10% | E20: 10 | F20: 8.5 | G20: 3400 | H20: 0.85 | I20: 85 | J20: 16000 | K20: بناء محارة وعزل40% | L20: 2.5 | M20: 34 | N20: 13600 | O20: 0.85 | P20: 85 | Q20: =+Q19 -> 14000 | R20: عزل 35% | S20: 2.857142857 | T20: 29.75 | U20: 11900 | V20: 0.85 | W20: 85 | X20: =+X19 -> 2000 | Y20: مواسير صرف ورى5% | Z20: 20 | AA20: 4.25 | AB20: 1700 | AC20: 0.85 | AD20: 85 | AE20: =+AE19 -> 4000 | AF20: سور10% | AG20: 10 | AH20: 8.5 | AI20: 3400
A21: 0.9 | B21: 90 | C21: 4000 | D21: حفروردم 10% | E21: 10 | F21: 9 | G21: 3600 | H21: 0.9 | I21: 90 | J21: 16000 | K21: بناء محارة وعزل40% | L21: 2.5 | M21: 36 | N21: 14400 | O21: 0.9 | P21: 90 | Q21: =+Q20 -> 14000 | R21: عزل 35% | S21: 2.857142857 | T21: 31.5 | U21: 12600 | V21: 0.9 | W21: 90 | X21: =+X20 -> 2000 | Y21: مواسير صرف ورى5% | Z21: 20 | AA21: 4.5 | AB21: 1800 | AC21: 0.9 | AD21: 90 | AE21: =+AE20 -> 4000 | AF21: سور10% | AG21: 10 | AH21: 9 | AI21: 3600
A22: 0.95 | B22: 95 | C22: =+C21 -> 4000 | D22: حفروردم 10% | E22: 10 | F22: 9.5 | G22: 3800 | H22: 0.95 | I22: 95 | J22: 16000 | K22: بناء محارة وعزل40% | L22: 2.5 | M22: 38 | N22: 15200 | O22: 0.95 | P22: 95 | Q22: =+Q21 -> 14000 | R22: عزل 35% | S22: 2.857142857 | T22: 33.25 | U22: 13300 | V22: 0.95 | W22: 95 | X22: =+X21 -> 2000 | Y22: مواسير صرف ورى5% | Z22: 20 | AA22: 4.75 | AB22: 1900 | AC22: 0.95 | AD22: 95 | AE22: =+AE21 -> 4000 | AF22: سور10% | AG22: 10 | AH22: 9.5 | AI22: 3800
A23: 1 | B23: 100 | C23: 4000 | D23: حفروردم 10% | E23: 10 | F23: 10 | G23: 4000 | H23: 1 | I23: 100 | J23: 16000 | K23: بناء محارة وعزل40% | L23: 2.5 | M23: 40 | N23: 16000 | O23: 1 | P23: 100 | Q23: =+Q22 -> 14000 | R23: عزل 35% | S23: 2.857142857 | T23: 35 | U23: 14000 | V23: 1 | W23: 100 | X23: =+X22 -> 2000 | Y23: مواسير صرف ورى5% | Z23: 20 | AA23: 5 | AB23: 2000 | AC23: 1 | AD23: 100 | AE23: =+AE22 -> 4000 | AF23: سور10% | AG23: 10 | AH23: 10 | AI23: 4000
C24: =+C23 -> 4000 | G24: =+G23 -> 4000 | J24: =+J23 -> 16000 | N24: =+N23 -> 16000

Sheet الشغل
J2: =SUBTOTAL(9,J5:J24) -> 66900 | N2: =IF(G5<>"",IF(G5=القائمة!E2,VLOOKUP($H5,'النسب '!$A$3:$G$23,6,0),""),AND(IF(G5=القائمة!E3,VLOOKUP($H5,'النسب '!$H$3:$N$23,6,0),""),AND(IF(G5=القائمة!E4,VLOOKUP($H5,'النسب '!$O$3:$U$23,6,0),"")),AND(IF(G5=القائمة!E4,VLOOKUP($H5,'النسب '!$O$3:$U$23,6,0),"")),AND(IF(G5=القائمة!E6,VLOOKUP($H5,'النسب '!$AC$2:$AI$23,6,0),"")))) -> 10 | P2: =OR(IF(G5=القائمة!E3,VLOOKUP($H5,'النسب '!$H$3:$N$23,6,0),""),IF(G5=القائمة!E4,VLOOKUP($H5,'النسب '!$O$3:$U$23,6,0),""),IF(G5=القائمة!E4,VLOOKUP($H5,'النسب '!$O$3:$U$23,6,0),""),IF(G5=القائمة!E6,VLOOKUP($H5,'النسب '!$AC$2:$AI$23,6,0),"")) -> 
N3: =IF(G5=القائمة!E2,VLOOKUP($H5,'النسب '!$A$3:$G$23,6,0),"") -> 10 | O3: =IF(G5=القائمة!E3,VLOOKUP($H5,'النسب '!$H$3:$N$23,6,0),"") ->  | P3: =IF(G5=القائمة!E4,VLOOKUP($H5,'النسب '!$O$3:$U$23,6,0),"") ->  | Q3: =IF(G5=القائمة!E5,VLOOKUP($H5,'النسب '!$V$3:$AB$23,6,0),"") ->  | R3: =IF(G5=القائمة!E6,VLOOKUP($H5,'النسب '!$AC$2:$AI$23,6,0),"") -> 
B4: التاريخ | C4: المقاول | D4: الكلاستر | E4: الصوبة | F4: عدد العمال | G4: العمل | H4: النسبة يدوى | I4: العمل من صفحة النسبة | J4: القيمة المستحقة من صفحة النسبة | L4: المقاول | M4: القيمة المستحقة | N4: جدول 1 | O4: جدول 2 | P4: جدول 3 | Q4: جدول 4 | R4: جدول 5
B5: 2019-08-28 | C5: خالد مهدى | D5: 56 | G5: 1حفر وردم 10%0 | H5: 1 | I5: =IF(G5<>"",VLOOKUP($H5,'النسب '!$A$2:$N$23,6,0),"") -> 10 | J5: =IF(G5=القائمة!$E$2,VLOOKUP($H5,'النسب '!$A$3:$N$23,7,0),VLOOKUP($H5,'النسب '!$A$3:$N$23,12,0)) -> 4000 | L5: =+C5 -> خالد مهدى | M5: =+J5 -> 4000 | N5: =VLOOKUP($H5,'النسب '!$A$3:$G$23,6,0) -> 10 | O5: =VLOOKUP($H5,'النسب '!$H$3:$N$23,6,0) -> 40 | P5: =VLOOKUP($H5,'النسب '!$O$3:$U$23,6,0) -> 35 | Q5: =VLOOKUP($H5,'النسب '!$V$3:$AB$23,6,0) -> 5 | R5: =VLOOKUP($H5,'النسب '!$AC$2:$AI$23,6,0) -> 10
B6: 2019-08-28 | C6: خالد مهدى | D6: 56 | G6: 2بناء ومحارة وعزل40%0 | H6: 0.75 | I6: 30 | J6: 12000 | L6: خالد مهدى | M6: =+J6 -> 12000 | N6: =IF(G6=القائمة!E5,VLOOKUP($H8,'النسب '!$A$3:$G$23,6,0),"") ->  | O6: =IF(G6=القائمة!E6,VLOOKUP($H8,'النسب '!$H$3:$N$23,6,0),"") ->  | P6: =IF(G6=القائمة!E7,VLOOKUP($H8,'النسب '!$O$3:$U$23,6,0),"") ->  | Q6: =IF(G6=القائمة!E8,VLOOKUP($H8,'النسب '!$V$3:$AB$23,6,0),"") ->  | R6: =IF(G6=القائمة!E9,VLOOKUP($H8,'النسب '!$AC$2:$AI$23,6,0),"") -> 
B7: 2019-08-28 | C7: خالد مهدى | D7: 56 | G7: 3عـــــــــــــــــزل35%0 | H7: 0.45 | I7: 15.75 | J7: 6300 | L7: خالد مهدى | M7: 6300
B8: 2019-08-28 | C8: خالد مهدى | D8: 57 | G8: 1حفر وردم 10%0 | H8: 1 | I8: =IF(G8<>"",VLOOKUP($H8,'النسب '!$A$2:$N$23,6,0),"") -> 10 | J8: =IF(G8=القائمة!$E$2,VLOOKUP($H8,'النسب '!$A$3:$N$23,7,0),VLOOKUP($H8,'النسب '!$A$3:$N$23,12,0)) -> 4000 | L8: خالد مهدى | M8: 4000
B9: 2019-08-28 | C9: خالد مهدى | D9: 57 | G9: 2بناء ومحارة وعزل40%0 | H9: 0.75 | I9: 30 | J9: 12000 | L9: خالد مهدى | M9: 12000
B10: 2019-08-28 | C10: خالد مهدى | D10: 57 | G10: 3عـــــــــــــــــزل35%0 | H10: 0.45 | I10: 15.75 | J10: 6300 | L10: خالد مهدى | M10: 6300
B11: 2019-08-28 | C11: خالد مهدى | D11: 58 | G11: 1حفر وردم 10%0 | H11: 1 | I11: =IF(G11<>"",VLOOKUP($H11,'النسب '!$A$2:$N$23,6,0),"") -> 10 | J11: =IF(G11=القائمة!$E$2,VLOOKUP($H11,'النسب '!$A$3:$N$23,7,0),VLOOKUP($H11,'النسب '!$A$3:$N$23,12,0)) -> 4000 | L11: خالد مهدى | M11: 4000
B12: 2019-08-28 | C12: خالد مهدى | D12: 58 | G12: 2بناء ومحارة وعزل40%0 | H12: 0.75 | I12: 30 | J12: 12000 | L12: خالد مهدى | M12: 12000
B13: 2019-08-28 | C13: خالد مهدى | D13: 58 | G13: 3عـــــــــــــــــزل35%0 | H13: 0.45 | I13: 15.75 | J13: 6300 | L13: خالد مهدى | M13: 6300
G14: =IFERROR(VLOOKUP(#REF!,القائمة!$D$2:$E$6,2,0),"") ->  | I14: =IF(G14=القائمة!$E$2,VLOOKUP($H14,'النسب '!$A$2:$N$23,6,0),VLOOKUP($H14,'النسب '!$A$2:$N$23,11,0)) -> 0 | J14: =IF(G14=القائمة!$E$2,VLOOKUP($H14,'النسب '!$A$3:$N$23,7,0),VLOOKUP($H14,'النسب '!$A$3:$N$23,12,0)) -> 0 | L14: 0 | M14: 0
G15: =IFERROR(VLOOKUP(#REF!,القائمة!$D$2:$E$6,2,0),"") ->  | I15: =IF(G15=القائمة!$E$2,VLOOKUP($H15,'النسب '!$A$2:$N$23,6,0),VLOOKUP($H15,'النسب '!$A$2:$N$23,11,0)) -> 0 | J15: =IF(G15=القائمة!$E$2,VLOOKUP($H15,'النسب '!$A$3:$N$23,7,0),VLOOKUP($H15,'النسب '!$A$3:$N$23,12,0)) -> 0 | L15: 0 | M15: 0
G16: =IFERROR(VLOOKUP(#REF!,القائمة!$D$2:$E$6,2,0),"") ->  | I16: =IF(G16=القائمة!$E$2,VLOOKUP($H16,'النسب '!$A$2:$N$23,6,0),VLOOKUP($H16,'النسب '!$A$2:$N$23,11,0)) -> 0 | J16: =IF(G16=القائمة!$E$2,VLOOKUP($H16,'النسب '!$A$3:$N$23,7,0),VLOOKUP($H16,'النسب '!$A$3:$N$23,12,0)) -> 0 | L16: 0 | M16: 0
G17: =IFERROR(VLOOKUP(#REF!,القائمة!$D$2:$E$6,2,0),"") ->  | I17: =IF(G17=القائمة!$E$2,VLOOKUP($H17,'النسب '!$A$2:$N$23,6,0),VLOOKUP($H17,'النسب '!$A$2:$N$23,11,0)) -> 0 | J17: =IF(G17=القائمة!$E$2,VLOOKUP($H17,'النسب '!$A$3:$N$23,7,0),VLOOKUP($H17,'النسب '!$A$3:$N$23,12,0)) -> 0 | L17: 0 | M17: 0
G18: =IFERROR(VLOOKUP(#REF!,القائمة!$D$2:$E$6,2,0),"") ->  | I18: =IF(G18=القائمة!$E$2,VLOOKUP($H18,'النسب '!$A$2:$N$23,6,0),VLOOKUP($H18,'النسب '!$A$2:$N$23,11,0)) -> 0 | J18: =IF(G18=القائمة!$E$2,VLOOKUP($H18,'النسب '!$A$3:$N$23,7,0),VLOOKUP($H18,'النسب '!$A$3:$N$23,12,0)) -> 0 | L18: 0 | M18: 0
G19: =IFERROR(VLOOKUP(#REF!,القائمة!$D$2:$E$6,2,0),"") ->  | I19: =IF(G19=القائمة!$E$2,VLOOKUP($H19,'النسب '!$A$2:$N$23,6,0),VLOOKUP($H19,'النسب '!$A$2:$N$23,11,0)) -> 0 | J19: =IF(G19=القائمة!$E$2,VLOOKUP($H19,'النسب '!$A$3:$N$23,7,0),VLOOKUP($H19,'النسب '!$A$3:$N$23,12,0)) -> 0 | L19: 0 | M19: 0
G20: =IFERROR(VLOOKUP(#REF!,القائمة!$D$2:$E$6,2,0),"") ->  | I20: =IF(G20=القائمة!$E$2,VLOOKUP($H20,'النسب '!$A$2:$N$23,6,0),VLOOKUP($H20,'النسب '!$A$2:$N$23,11,0)) -> 0 | J20: =IF(G20=القائمة!$E$2,VLOOKUP($H20,'النسب '!$A$3:$N$23,7,0),VLOOKUP($H20,'النسب '!$A$3:$N$23,12,0)) -> 0 | L20: 0 | M20: 0
G21: =IFERROR(VLOOKUP(#REF!,القائمة!$D$2:$E$6,2,0),"") ->  | I21: =IF(G21=القائمة!$E$2,VLOOKUP($H21,'النسب '!$A$2:$N$23,6,0),VLOOKUP($H21,'النسب '!$A$2:$N$23,11,0)) -> 0 | J21: =IF(G21=القائمة!$E$2,VLOOKUP($H21,'النسب '!$A$3:$N$23,7,0),VLOOKUP($H21,'النسب '!$A$3:$N$23,12,0)) -> 0 | L21: 0 | M21: 0
G22: =IFERROR(VLOOKUP(#REF!,القائمة!$D$2:$E$6,2,0),"") ->  | I22: =IF(G22=القائمة!$E$2,VLOOKUP($H22,'النسب '!$A$2:$N$23,6,0),VLOOKUP($H22,'النسب '!$A$2:$N$23,11,0)) -> 0 | J22: =IF(G22=القائمة!$E$2,VLOOKUP($H22,'النسب '!$A$3:$N$23,7,0),VLOOKUP($H22,'النسب '!$A$3:$N$23,12,0)) -> 0 | L22: 0 | M22: 0
G23: =IFERROR(VLOOKUP(#REF!,القائمة!$D$2:$E$6,2,0),"") ->  | I23: =IF(G23=القائمة!$E$2,VLOOKUP($H23,'النسب '!$A$2:$N$23,6,0),VLOOKUP($H23,'النسب '!$A$2:$N$23,11,0)) -> 0 | J23: =IF(G23=القائمة!$E$2,VLOOKUP($H23,'النسب '!$A$3:$N$23,7,0),VLOOKUP($H23,'النسب '!$A$3:$N$23,12,0)) -> 0 | L23: 0 | M23: 0
G24: =IFERROR(VLOOKUP(#REF!,القائمة!$D$2:$E$6,2,0),"") ->  | I24: =IF(G24=القائمة!$E$2,VLOOKUP($H24,'النسب '!$A$2:$N$23,6,0),VLOOKUP($H24,'النسب '!$A$2:$N$23,11,0)) -> 0 | J24: =IF(G24=القائمة!$E$2,VLOOKUP($H24,'النسب '!$A$3:$N$23,7,0),VLOOKUP($H24,'النسب '!$A$3:$N$23,12,0)) -> 0 | L24: 0 | M24: 0
G25: =IFERROR(VLOOKUP(#REF!,القائمة!$D$2:$E$6,2,0),"") ->  | I25: =IF(G25=القائمة!$E$2,VLOOKUP($H25,'النسب '!$A$2:$N$23,6,0),VLOOKUP($H25,'النسب '!$A$2:$N$23,11,0)) -> 0 | J25: =IF(G25=القائمة!$E$2,VLOOKUP($H25,'النسب '!$A$3:$N$23,7,0),VLOOKUP($H25,'النسب '!$A$3:$N$23,12,0)) -> 0 | L25: 0 | M25: 0
G26: =IFERROR(VLOOKUP(#REF!,القائمة!$D$2:$E$6,2,0),"") ->  | I26: =IF(G26=القائمة!$E$2,VLOOKUP($H26,'النسب '!$A$2:$N$23,6,0),VLOOKUP($H26,'النسب '!$A$2:$N$23,11,0)) -> 0 | J26: =IF(G26=القائمة!$E$2,VLOOKUP($H26,'النسب '!$A$3:$N$23,7,0),VLOOKUP($H26,'النسب '!$A$3:$N$23,12,0)) -> 0 | L26: 0 | M26: 0
G27: =IFERROR(VLOOKUP(#REF!,القائمة!$D$2:$E$6,2,0),"") ->  | I27: =IF(G27=القائمة!$E$2,VLOOKUP($H27,'النسب '!$A$2:$N$23,6,0),VLOOKUP($H27,'النسب '!$A$2:$N$23,11,0)) -> 0 | J27: =IF(G27=القائمة!$E$2,VLOOKUP($H27,'النسب '!$A$3:$N$23,7,0),VLOOKUP($H27,'النسب '!$A$3:$N$23,12,0)) -> 0 | L27: 0 | M27: 0
G28: =IFERROR(VLOOKUP(#REF!,القائمة!$D$2:$E$6,2,0),"") ->  | I28: =IF(G28=القائمة!$E$2,VLOOKUP($H28,'النسب '!$A$2:$N$23,6,0),VLOOKUP($H28,'النسب '!$A$2:$N$23,11,0)) -> 0 | J28: =IF(G28=القائمة!$E$2,VLOOKUP($H28,'النسب '!$A$3:$N$23,7,0),VLOOKUP($H28,'النسب '!$A$3:$N$23,12,0)) -> 0 | L28: 0 | M28: 0
G29: =IFERROR(VLOOKUP(#REF!,القائمة!$D$2:$E$6,2,0),"") ->  | I29: =IF(G29=القائمة!$E$2,VLOOKUP($H29,'النسب '!$A$2:$N$23,6,0),VLOOKUP($H29,'النسب '!$A$2:$N$23,11,0)) -> 0 | J29: =IF(G29=القائمة!$E$2,VLOOKUP($H29,'النسب '!$A$3:$N$23,7,0),VLOOKUP($H29,'النسب '!$A$3:$N$23,12,0)) -> 0 | L29: 0 | M29: 0
G30: =IFERROR(VLOOKUP(#REF!,القائمة!$D$2:$E$6,2,0),"") ->  | I30: =IF(G30=القائمة!$E$2,VLOOKUP($H30,'النسب '!$A$2:$N$23,6,0),VLOOKUP($H30,'النسب '!$A$2:$N$23,11,0)) -> 0 | J30: =IF(G30=القائمة!$E$2,VLOOKUP($H30,'النسب '!$A$3:$N$23,7,0),VLOOKUP($H30,'النسب '!$A$3:$N$23,12,0)) -> 0 | L30: 0 | M30: 0
G31: =IFERROR(VLOOKUP(#REF!,القائمة!$D$2:$E$6,2,0),"") ->  | I31: =IF(G31=القائمة!$E$2,VLOOKUP($H31,'النسب '!$A$2:$N$23,6,0),VLOOKUP($H31,'النسب '!$A$2:$N$23,11,0)) -> 0 | J31: =IF(G31=القائمة!$E$2,VLOOKUP($H31,'النسب '!$A$3:$N$23,7,0),VLOOKUP($H31,'النسب '!$A$3:$N$23,12,0)) -> 0 | L31: 0 | M31: 0
G32: =IFERROR(VLOOKUP(#REF!,القائمة!$D$2:$E$6,2,0),"") ->  | I32: =IF(G32=القائمة!$E$2,VLOOKUP($H32,'النسب '!$A$2:$N$23,6,0),VLOOKUP($H32,'النسب '!$A$2:$N$23,11,0)) -> 0 | J32: =IF(G32=القائمة!$E$2,VLOOKUP($H32,'النسب '!$A$3:$N$23,7,0),VLOOKUP($H32,'النسب '!$A$3:$N$23,12,0)) -> 0 | L32: 0 | M32: 0
G33: =IFERROR(VLOOKUP(#REF!,القائمة!$D$2:$E$6,2,0),"") ->  | I33: =IF(G33=القائمة!$E$2,VLOOKUP($H33,'النسب '!$A$2:$N$23,6,0),VLOOKUP($H33,'النسب '!$A$2:$N$23,11,0)) -> 0 | J33: =IF(G33=القائمة!$E$2,VLOOKUP($H33,'النسب '!$A$3:$N$23,7,0),VLOOKUP($H33,'النسب '!$A$3:$N$23,12,0)) -> 0 | L33: 0 | M33: 0
G34: =IFERROR(VLOOKUP(#REF!,القائمة!$D$2:$E$6,2,0),"") ->  | I34: =IF(G34=القائمة!$E$2,VLOOKUP($H34,'النسب '!$A$2:$N$23,6,0),VLOOKUP($H34,'النسب '!$A$2:$N$23,11,0)) -> 0 | J34: =IF(G34=القائمة!$E$2,VLOOKUP($H34,'النسب '!$A$3:$N$23,7,0),VLOOKUP($H34,'النسب '!$A$3:$N$23,12,0)) -> 0 | L34: 0 | M34: 0
G35: =IFERROR(VLOOKUP(#REF!,القائمة!$D$2:$E$6,2,0),"") ->  | I35: =IF(G35=القائمة!$E$2,VLOOKUP($H35,'النسب '!$A$2:$N$23,6,0),VLOOKUP($H35,'النسب '!$A$2:$N$23,11,0)) -> 0 | J35: =IF(G35=القائمة!$E$2,VLOOKUP($H35,'النسب '!$A$3:$N$23,7,0),VLOOKUP($H35,'النسب '!$A$3:$N$23,12,0)) -> 0 | L35: 0 | M35: 0
G36: =IFERROR(VLOOKUP(#REF!,القائمة!$D$2:$E$6,2,0),"") ->  | I36: =IF(G36=القائمة!$E$2,VLOOKUP($H36,'النسب '!$A$2:$N$23,6,0),VLOOKUP($H36,'النسب '!$A$2:$N$23,11,0)) -> 0 | J36: =IF(G36=القائمة!$E$2,VLOOKUP($H36,'النسب '!$A$3:$N$23,7,0),VLOOKUP($H36,'النسب '!$A$3:$N$23,12,0)) -> 0 | L36: 0 | M36: 0
G37: =IFERROR(VLOOKUP(#REF!,القائمة!$D$2:$E$6,2,0),"") ->  | I37: =IF(G37=القائمة!$E$2,VLOOKUP($H37,'النسب '!$A$2:$N$23,6,0),VLOOKUP($H37,'النسب '!$A$2:$N$23,11,0)) -> 0 | J37: =IF(G37=القائمة!$E$2,VLOOKUP($H37,'النسب '!$A$3:$N$23,7,0),VLOOKUP($H37,'النسب '!$A$3:$N$23,12,0)) -> 0 | L37: 0 | M37: 0
G38: =IFERROR(VLOOKUP(#REF!,القائمة!$D$2:$E$6,2,0),"") ->  | I38: =IF(G38=القائمة!$E$2,VLOOKUP($H38,'النسب '!$A$2:$N$23,6,0),VLOOKUP($H38,'النسب '!$A$2:$N$23,11,0)) -> 0 | J38: =IF(G38=القائمة!$E$2,VLOOKUP($H38,'النسب '!$A$3:$N$23,7,0),VLOOKUP($H38,'النسب '!$A$3:$N$23,12,0)) -> 0 | L38: 0 | M38: 0
G39: =IFERROR(VLOOKUP(#REF!,القائمة!$D$2:$E$6,2,0),"") ->  | I39: =IF(G39=القائمة!$E$2,VLOOKUP($H39,'النسب '!$A$2:$N$23,6,0),VLOOKUP($H39,'النسب '!$A$2:$N$23,11,0)) -> 0 | J39: =IF(G39=القائمة!$E$2,VLOOKUP($H39,'النسب '!$A$3:$N$23,7,0),VLOOKUP($H39,'النسب '!$A$3:$N$23,12,0)) -> 0 | L39: 0 | M39: 0
G40: =IFERROR(VLOOKUP(#REF!,القائمة!$D$2:$E$6,2,0),"") ->  | I40: =IF(G40=القائمة!$E$2,VLOOKUP($H40,'النسب '!$A$2:$N$23,6,0),VLOOKUP($H40,'النسب '!$A$2:$N$23,11,0)) -> 0 | J40: =IF(G40=القائمة!$E$2,VLOOKUP($H40,'النسب '!$A$3:$N$23,7,0),VLOOKUP($H40,'النسب '!$A$3:$N$23,12,0)) -> 0 | L40: 0 | M40: 0
G41: =IFERROR(VLOOKUP(#REF!,القائمة!$D$2:$E$6,2,0),"") ->  | I41: =IF(G41=القائمة!$E$2,VLOOKUP($H41,'النسب '!$A$2:$N$23,6,0),VLOOKUP($H41,'النسب '!$A$2:$N$23,11,0)) -> 0 | J41: =IF(G41=القائمة!$E$2,VLOOKUP($H41,'النسب '!$A$3:$N$23,7,0),VLOOKUP($H41,'النسب '!$A$3:$N$23,12,0)) -> 0 | L41: 0 | M41: 0
G42: =IFERROR(VLOOKUP(#REF!,القائمة!$D$2:$E$6,2,0),"") ->  | I42: =IF(G42=القائمة!$E$2,VLOOKUP($H42,'النسب '!$A$2:$N$23,6,0),VLOOKUP($H42,'النسب '!$A$2:$N$23,11,0)) -> 0 | J42: =IF(G42=القائمة!$E$2,VLOOKUP($H42,'النسب '!$A$3:$N$23,7,0),VLOOKUP($H42,'النسب '!$A$3:$N$23,12,0)) -> 0 | L42: 0 | M42: 0
G43: =IFERROR(VLOOKUP(#REF!,القائمة!$D$2:$E$6,2,0),"") ->  | I43: =IF(G43=القائمة!$E$2,VLOOKUP($H43,'النسب '!$A$2:$N$23,6,0),VLOOKUP($H43,'النسب '!$A$2:$N$23,11,0)) -> 0 | J43: =IF(G43=القائمة!$E$2,VLOOKUP($H43,'النسب '!$A$3:$N$23,7,0),VLOOKUP($H43,'النسب '!$A$3:$N$23,12,0)) -> 0 | L43: 0 | M43: 0
G44: =IFERROR(VLOOKUP(#REF!,القائمة!$D$2:$E$6,2,0),"") ->  | I44: =IF(G44=القائمة!$E$2,VLOOKUP($H44,'النسب '!$A$2:$N$23,6,0),VLOOKUP($H44,'النسب '!$A$2:$N$23,11,0)) -> 0 | J44: =IF(G44=القائمة!$E$2,VLOOKUP($H44,'النسب '!$A$3:$N$23,7,0),VLOOKUP($H44,'النسب '!$A$3:$N$23,12,0)) -> 0 | L44: 0 | M44: 0
G45: =IFERROR(VLOOKUP(#REF!,القائمة!$D$2:$E$6,2,0),"") ->  | I45: =IF(G45=القائمة!$E$2,VLOOKUP($H45,'النسب '!$A$2:$N$23,6,0),VLOOKUP($H45,'النسب '!$A$2:$N$23,11,0)) -> 0 | J45: =IF(G45=القائمة!$E$2,VLOOKUP($H45,'النسب '!$A$3:$N$23,7,0),VLOOKUP($H45,'النسب '!$A$3:$N$23,12,0)) -> 0 | L45: 0 | M45: 0
G46: =IFERROR(VLOOKUP(#REF!,القائمة!$D$2:$E$6,2,0),"") ->  | I46: =IF(G46=القائمة!$E$2,VLOOKUP($H46,'النسب '!$A$2:$N$23,6,0),VLOOKUP($H46,'النسب '!$A$2:$N$23,11,0)) -> 0 | J46: =IF(G46=القائمة!$E$2,VLOOKUP($H46,'النسب '!$A$3:$N$23,7,0),VLOOKUP($H46,'النسب '!$A$3:$N$23,12,0)) -> 0 | L46: 0 | M46: 0
G47: =IFERROR(VLOOKUP(#REF!,القائمة!$D$2:$E$6,2,0),"") ->  | I47: =IF(G47=القائمة!$E$2,VLOOKUP($H47,'النسب '!$A$2:$N$23,6,0),VLOOKUP($H47,'النسب '!$A$2:$N$23,11,0)) -> 0 | J47: =IF(G47=القائمة!$E$2,VLOOKUP($H47,'النسب '!$A$3:$N$23,7,0),VLOOKUP($H47,'النسب '!$A$3:$N$23,12,0)) -> 0 | L47: 0 | M47: 0
G48: =IFERROR(VLOOKUP(#REF!,القائمة!$D$2:$E$6,2,0),"") ->  | I48: =IF(G48=القائمة!$E$2,VLOOKUP($H48,'النسب '!$A$2:$N$23,6,0),VLOOKUP($H48,'النسب '!$A$2:$N$23,11,0)) -> 0 | J48: =IF(G48=القائمة!$E$2,VLOOKUP($H48,'النسب '!$A$3:$N$23,7,0),VLOOKUP($H48,'النسب '!$A$3:$N$23,12,0)) -> 0 | L48: 0 | M48: 0
G49: =IFERROR(VLOOKUP(#REF!,القائمة!$D$2:$E$6,2,0),"") ->  | I49: =IF(G49=القائمة!$E$2,VLOOKUP($H49,'النسب '!$A$2:$N$23,6,0),VLOOKUP($H49,'النسب '!$A$2:$N$23,11,0)) -> 0 | J49: =IF(G49=القائمة!$E$2,VLOOKUP($H49,'النسب '!$A$3:$N$23,7,0),VLOOKUP($H49,'النسب '!$A$3:$N$23,12,0)) -> 0 | L49: 0 | M49: 0
G50: =IFERROR(VLOOKUP(#REF!,القائمة!$D$2:$E$6,2,0),"") ->  | I50: =IF(G50=القائمة!$E$2,VLOOKUP($H50,'النسب '!$A$2:$N$23,6,0),VLOOKUP($H50,'النسب '!$A$2:$N$23,11,0)) -> 0 | J50: =IF(G50=القائمة!$E$2,VLOOKUP($H50,'النسب '!$A$3:$N$23,7,0),VLOOKUP($H50,'النسب '!$A$3:$N$23,12,0)) -> 0 | L50: 0 | M50: 0
G51: =IFERROR(VLOOKUP(#REF!,القائمة!$D$2:$E$6,2,0),"") ->  | I51: =IF(G51=القائمة!$E$2,VLOOKUP($H51,'النسب '!$A$2:$N$23,6,0),VLOOKUP($H51,'النسب '!$A$2:$N$23,11,0)) -> 0 | J51: =IF(G51=القائمة!$E$2,VLOOKUP($H51,'النسب '!$A$3:$N$23,7,0),VLOOKUP($H51,'النسب '!$A$3:$N$23,12,0)) -> 0 | L51: 0 | M51: 0
G52: =IFERROR(VLOOKUP(#REF!,القائمة!$D$2:$E$6,2,0),"") ->  | I52: =IF(G52=القائمة!$E$2,VLOOKUP($H52,'النسب '!$A$2:$N$23,6,0),VLOOKUP($H52,'النسب '!$A$2:$N$23,11,0)) -> 0 | J52: =IF(G52=القائمة!$E$2,VLOOKUP($H52,'النسب '!$A$3:$N$23,7,0),VLOOKUP($H52,'النسب '!$A$3:$N$23,12,0)) -> 0 | L52: 0 | M52: 0
G53: =IFERROR(VLOOKUP(#REF!,القائمة!$D$2:$E$6,2,0),"") ->  | I53: =IF(G53=القائمة!$E$2,VLOOKUP($H53,'النسب '!$A$2:$N$23,6,0),VLOOKUP($H53,'النسب '!$A$2:$N$23,11,0)) -> 0 | J53: =IF(G53=القائمة!$E$2,VLOOKUP($H53,'النسب '!$A$3:$N$23,7,0),VLOOKUP($H53,'النسب '!$A$3:$N$23,12,0)) -> 0 | L53: 0 | M53: 0
G54: =IFERROR(VLOOKUP(#REF!,القائمة!$D$2:$E$6,2,0),"") ->  | I54: =IF(G54=القائمة!$E$2,VLOOKUP($H54,'النسب '!$A$2:$N$23,6,0),VLOOKUP($H54,'النسب '!$A$2:$N$23,11,0)) -> 0 | J54: =IF(G54=القائمة!$E$2,VLOOKUP($H54,'النسب '!$A$3:$N$23,7,0),VLOOKUP($H54,'النسب '!$A$3:$N$23,12,0)) -> 0 | L54: 0 | M54: 0
G55: =IFERROR(VLOOKUP(#REF!,القائمة!$D$2:$E$6,2,0),"") ->  | I55: =IF(G55=القائمة!$E$2,VLOOKUP($H55,'النسب '!$A$2:$N$23,6,0),VLOOKUP($H55,'النسب '!$A$2:$N$23,11,0)) -> 0 | J55: =IF(G55=القائمة!$E$2,VLOOKUP($H55,'النسب '!$A$3:$N$23,7,0),VLOOKUP($H55,'النسب '!$A$3:$N$23,12,0)) -> 0 | L55: 0 | M55: 0
G56: =IFERROR(VLOOKUP(#REF!,القائمة!$D$2:$E$6,2,0),"") ->  | I56: =IF(G56=القائمة!$E$2,VLOOKUP($H56,'النسب '!$A$2:$N$23,6,0),VLOOKUP($H56,'النسب '!$A$2:$N$23,11,0)) -> 0 | J56: =IF(G56=القائمة!$E$2,VLOOKUP($H56,'النسب '!$A$3:$N$23,7,0),VLOOKUP($H56,'النسب '!$A$3:$N$23,12,0)) -> 0 | L56: 0 | M56: 0
G57: =IFERROR(VLOOKUP(#REF!,القائمة!$D$2:$E$6,2,0),"") ->  | I57: =IF(G57=القائمة!$E$2,VLOOKUP($H57,'النسب '!$A$2:$N$23,6,0),VLOOKUP($H57,'النسب '!$A$2:$N$23,11,0)) -> 0 | J57: =IF(G57=القائمة!$E$2,VLOOKUP($H57,'النسب '!$A$3:$N$23,7,0),VLOOKUP($H57,'النسب '!$A$3:$N$23,12,0)) -> 0 | L57: 0 | M57: 0
G58: =IFERROR(VLOOKUP(#REF!,القائمة!$D$2:$E$6,2,0),"") ->  | I58: =IF(G58=القائمة!$E$2,VLOOKUP($H58,'النسب '!$A$2:$N$23,6,0),VLOOKUP($H58,'النسب '!$A$2:$N$23,11,0)) -> 0 | J58: =IF(G58=القائمة!$E$2,VLOOKUP($H58,'النسب '!$A$3:$N$23,7,0),VLOOKUP($H58,'النسب '!$A$3:$N$23,12,0)) -> 0 | L58: 0 | M58: 0
G59: =IFERROR(VLOOKUP(#REF!,القائمة!$D$2:$E$6,2,0),"") ->  | I59: =IF(G59=القائمة!$E$2,VLOOKUP($H59,'النسب '!$A$2:$N$23,6,0),VLOOKUP($H59,'النسب '!$A$2:$N$23,11,0)) -> 0 | J59: =IF(G59=القائمة!$E$2,VLOOKUP($H59,'النسب '!$A$3:$N$23,7,0),VLOOKUP($H59,'النسب '!$A$3:$N$23,12,0)) -> 0 | L59: 0 | M59: 0
G60: =IFERROR(VLOOKUP(#REF!,القائمة!$D$2:$E$6,2,0),"") ->  | I60: =IF(G60=القائمة!$E$2,VLOOKUP($H60,'النسب '!$A$2:$N$23,6,0),VLOOKUP($H60,'النسب '!$A$2:$N$23,11,0)) -> 0 | J60: =IF(G60=القائمة!$E$2,VLOOKUP($H60,'النسب '!$A$3:$N$23,7,0),VLOOKUP($H60,'النسب '!$A$3:$N$23,12,0)) -> 0 | L60: 0 | M60: 0
G61: =IFERROR(VLOOKUP(#REF!,القائمة!$D$2:$E$6,2,0),"") ->  | I61: =IF(G61=القائمة!$E$2,VLOOKUP($H61,'النسب '!$A$2:$N$23,6,0),VLOOKUP($H61,'النسب '!$A$2:$N$23,11,0)) -> 0 | J61: =IF(G61=القائمة!$E$2,VLOOKUP($H61,'النسب '!$A$3:$N$23,7,0),VLOOKUP($H61,'النسب '!$A$3:$N$23,12,0)) -> 0 | L61: 0 | M61: 0
G62: =IFERROR(VLOOKUP(#REF!,القائمة!$D$2:$E$6,2,0),"") ->  | I62: =IF(G62=القائمة!$E$2,VLOOKUP($H62,'النسب '!$A$2:$N$23,6,0),VLOOKUP($H62,'النسب '!$A$2:$N$23,11,0)) -> 0 | J62: =IF(G62=القائمة!$E$2,VLOOKUP($H62,'النسب '!$A$3:$N$23,7,0),VLOOKUP($H62,'النسب '!$A$3:$N$23,12,0)) -> 0 | L62: 0 | M62: 0
G63: =IFERROR(VLOOKUP(#REF!,القائمة!$D$2:$E$6,2,0),"") ->  | I63: =IF(G63=القائمة!$E$2,VLOOKUP($H63,'النسب '!$A$2:$N$23,6,0),VLOOKUP($H63,'النسب '!$A$2:$N$23,11,0)) -> 0 | J63: =IF(G63=القائمة!$E$2,VLOOKUP($H63,'النسب '!$A$3:$N$23,7,0),VLOOKUP($H63,'النسب '!$A$3:$N$23,12,0)) -> 0 | L63: 0 | M63: 0
G64: =IFERROR(VLOOKUP(#REF!,القائمة!$D$2:$E$6,2,0),"") ->  | I64: =IF(G64=القائمة!$E$2,VLOOKUP($H64,'النسب '!$A$2:$N$23,6,0),VLOOKUP($H64,'النسب '!$A$2:$N$23,11,0)) -> 0 | J64: =IF(G64=القائمة!$E$2,VLOOKUP($H64,'النسب '!$A$3:$N$23,7,0),VLOOKUP($H64,'النسب '!$A$3:$N$23,12,0)) -> 0 | L64: 0 | M64: 0 | P64: =15000*60/100 -> 9000
G65: =IFERROR(VLOOKUP(#REF!,القائمة!$D$2:$E$6,2,0),"") ->  | I65: =IF(G65=القائمة!$E$2,VLOOKUP($H65,'النسب '!$A$2:$N$23,6,0),VLOOKUP($H65,'النسب '!$A$2:$N$23,11,0)) -> 0 | J65: =IF(G65=القائمة!$E$2,VLOOKUP($H65,'النسب '!$A$3:$N$23,7,0),VLOOKUP($H65,'النسب '!$A$3:$N$23,12,0)) -> 0 | L65: 0 | M65: 0
G66: =IFERROR(VLOOKUP(#REF!,القائمة!$D$2:$E$6,2,0),"") ->  | I66: =IF(G66=القائمة!$E$2,VLOOKUP($H66,'النسب '!$A$2:$N$23,6,0),VLOOKUP($H66,'النسب '!$A$2:$N$23,11,0)) -> 0 | J66: =IF(G66=القائمة!$E$2,VLOOKUP($H66,'النسب '!$A$3:$N$23,7,0),VLOOKUP($H66,'النسب '!$A$3:$N$23,12,0)) -> 0 | L66: 0 | M66: 0
G67: =IFERROR(VLOOKUP(#REF!,القائمة!$D$2:$E$6,2,0),"") ->  | I67: =IF(G67=القائمة!$E$2,VLOOKUP($H67,'النسب '!$A$2:$N$23,6,0),VLOOKUP($H67,'النسب '!$A$2:$N$23,11,0)) -> 0 | J67: =IF(G67=القائمة!$E$2,VLOOKUP($H67,'النسب '!$A$3:$N$23,7,0),VLOOKUP($H67,'النسب '!$A$3:$N$23,12,0)) -> 0 | L67: 0 | M67: 0
G68: =IFERROR(VLOOKUP(#REF!,القائمة!$D$2:$E$6,2,0),"") ->  | I68: =IF(G68=القائمة!$E$2,VLOOKUP($H68,'النسب '!$A$2:$N$23,6,0),VLOOKUP($H68,'النسب '!$A$2:$N$23,11,0)) -> 0 | J68: =IF(G68=القائمة!$E$2,VLOOKUP($H68,'النسب '!$A$3:$N$23,7,0),VLOOKUP($H68,'النسب '!$A$3:$N$23,12,0)) -> 0 | L68: 0 | M68: 0
G69: =IFERROR(VLOOKUP(#REF!,القائمة!$D$2:$E$6,2,0),"") ->  | I69: =IF(G69=القائمة!$E$2,VLOOKUP($H69,'النسب '!$A$2:$N$23,6,0),VLOOKUP($H69,'النسب '!$A$2:$N$23,11,0)) -> 0 | J69: =IF(G69=القائمة!$E$2,VLOOKUP($H69,'النسب '!$A$3:$N$23,7,0),VLOOKUP($H69,'النسب '!$A$3:$N$23,12,0)) -> 0 | L69: =+C69 -> 0 | M69: 0
G70: =IFERROR(VLOOKUP(#REF!,القائمة!$D$2:$E$6,2,0),"") ->  | I70: =IF(G70=القائمة!$E$2,VLOOKUP($H70,'النسب '!$A$2:$N$23,6,0),VLOOKUP($H70,'النسب '!$A$2:$N$23,11,0)) -> 0 | J70: =IF(G70=القائمة!$E$2,VLOOKUP($H70,'النسب '!$A$3:$N$23,7,0),VLOOKUP($H70,'النسب '!$A$3:$N$23,12,0)) -> 0 | L70: 0 | M70: =+J70 -> 0
G71: =IFERROR(VLOOKUP(#REF!,القائمة!$D$2:$E$6,2,0),"") ->  | I71: =IF(G71=القائمة!$E$2,VLOOKUP($H71,'النسب '!$A$2:$N$23,6,0),VLOOKUP($H71,'النسب '!$A$2:$N$23,11,0)) -> 0 | J71: =IF(G71=القائمة!$E$2,VLOOKUP($H71,'النسب '!$A$3:$N$23,7,0),VLOOKUP($H71,'النسب '!$A$3:$N$23,12,0)) -> 0 | L71: 0 | M71: 0
G72: =IFERROR(VLOOKUP(#REF!,القائمة!$D$2:$E$6,2,0),"") ->  | I72: =IF(G72=القائمة!$E$2,VLOOKUP($H72,'النسب '!$A$2:$N$23,6,0),VLOOKUP($H72,'النسب '!$A$2:$N$23,11,0)) -> 0 | J72: =IF(G72=القائمة!$E$2,VLOOKUP($H72,'النسب '!$A$3:$N$23,7,0),VLOOKUP($H72,'النسب '!$A$3:$N$23,12,0)) -> 0 | L72: 0 | M72: 0
G73: =IFERROR(VLOOKUP(#REF!,القائمة!$D$2:$E$6,2,0),"") ->  | I73: =IF(G73=القائمة!$E$2,VLOOKUP($H73,'النسب '!$A$2:$N$23,6,0),VLOOKUP($H73,'النسب '!$A$2:$N$23,11,0)) -> 0 | J73: =IF(G73=القائمة!$E$2,VLOOKUP($H73,'النسب '!$A$3:$N$23,7,0),VLOOKUP($H73,'النسب '!$A$3:$N$23,12,0)) -> 0 | L73: 0 | M73: 0
G74: =IFERROR(VLOOKUP(#REF!,القائمة!$D$2:$E$6,2,0),"") ->  | I74: =IF(G74=القائمة!$E$2,VLOOKUP($H74,'النسب '!$A$2:$N$23,6,0),VLOOKUP($H74,'النسب '!$A$2:$N$23,11,0)) -> 0 | J74: =IF(G74=القائمة!$E$2,VLOOKUP($H74,'النسب '!$A$3:$N$23,7,0),VLOOKUP($H74,'النسب '!$A$3:$N$23,12,0)) -> 0 | L74: 0 | M74: 0
G75: =IFERROR(VLOOKUP(#REF!,القائمة!$D$2:$E$6,2,0),"") ->  | I75: =IF(G75=القائمة!$E$2,VLOOKUP($H75,'النسب '!$A$2:$N$23,6,0),VLOOKUP($H75,'النسب '!$A$2:$N$23,11,0)) -> 0 | J75: =IF(G75=القائمة!$E$2,VLOOKUP($H75,'النسب '!$A$3:$N$23,7,0),VLOOKUP($H75,'النسب '!$A$3:$N$23,12,0)) -> 0 | L75: 0 | M75: 0
G76: =IFERROR(VLOOKUP(#REF!,القائمة!$D$2:$E$6,2,0),"") ->  | I76: =IF(G76=القائمة!$E$2,VLOOKUP($H76,'النسب '!$A$2:$N$23,6,0),VLOOKUP($H76,'النسب '!$A$2:$N$23,11,0)) -> 0 | J76: =IF(G76=القائمة!$E$2,VLOOKUP($H76,'النسب '!$A$3:$N$23,7,0),VLOOKUP($H76,'النسب '!$A$3:$N$23,12,0)) -> 0 | L76: 0 | M76: 0
G77: =IFERROR(VLOOKUP(#REF!,القائمة!$D$2:$E$6,2,0),"") ->  | I77: =IF(G77=القائمة!$E$2,VLOOKUP($H77,'النسب '!$A$2:$N$23,6,0),VLOOKUP($H77,'النسب '!$A$2:$N$23,11,0)) -> 0 | J77: =IF(G77=القائمة!$E$2,VLOOKUP($H77,'النسب '!$A$3:$N$23,7,0),VLOOKUP($H77,'النسب '!$A$3:$N$23,12,0)) -> 0 | L77: 0 | M77: 0
G78: =IFERROR(VLOOKUP(#REF!,القائمة!$D$2:$E$6,2,0),"") ->  | I78: =IF(G78=القائمة!$E$2,VLOOKUP($H78,'النسب '!$A$2:$N$23,6,0),VLOOKUP($H78,'النسب '!$A$2:$N$23,11,0)) -> 0 | J78: =IF(G78=القائمة!$E$2,VLOOKUP($H78,'النسب '!$A$3:$N$23,7,0),VLOOKUP($H78,'النسب '!$A$3:$N$23,12,0)) -> 0 | L78: 0 | M78: 0
G79: =IFERROR(VLOOKUP(#REF!,القائمة!$D$2:$E$6,2,0),"") ->  | I79: =IF(G79=القائمة!$E$2,VLOOKUP($H79,'النسب '!$A$2:$N$23,6,0),VLOOKUP($H79,'النسب '!$A$2:$N$23,11,0)) -> 0 | J79: =IF(G79=القائمة!$E$2,VLOOKUP($H79,'النسب '!$A$3:$N$23,7,0),VLOOKUP($H79,'النسب '!$A$3:$N$23,12,0)) -> 0 | L79: 0 | M79: 0
G80: =IFERROR(VLOOKUP(#REF!,القائمة!$D$2:$E$6,2,0),"") ->  | I80: =IF(G80=القائمة!$E$2,VLOOKUP($H80,'النسب '!$A$2:$N$23,6,0),VLOOKUP($H80,'النسب '!$A$2:$N$23,11,0)) -> 0 | J80: =IF(G80=القائمة!$E$2,VLOOKUP($H80,'النسب '!$A$3:$N$23,7,0),VLOOKUP($H80,'النسب '!$A$3:$N$23,12,0)) -> 0 | L80: 0 | M80: 0
G81: =IFERROR(VLOOKUP(#REF!,القائمة!$D$2:$E$6,2,0),"") ->  | I81: =IF(G81=القائمة!$E$2,VLOOKUP($H81,'النسب '!$A$2:$N$23,6,0),VLOOKUP($H81,'النسب '!$A$2:$N$23,11,0)) -> 0 | J81: =IF(G81=القائمة!$E$2,VLOOKUP($H81,'النسب '!$A$3:$N$23,7,0),VLOOKUP($H81,'النسب '!$A$3:$N$23,12,0)) -> 0 | L81: 0 | M81: 0
G82: =IFERROR(VLOOKUP(#REF!,القائمة!$D$2:$E$6,2,0),"") ->  | I82: =IF(G82=القائمة!$E$2,VLOOKUP($H82,'النسب '!$A$2:$N$23,6,0),VLOOKUP($H82,'النسب '!$A$2:$N$23,11,0)) -> 0 | J82: =IF(G82=القائمة!$E$2,VLOOKUP($H82,'النسب '!$A$3:$N$23,7,0),VLOOKUP($H82,'النسب '!$A$3:$N$23,12,0)) -> 0 | L82: 0 | M82: 0
G83: =IFERROR(VLOOKUP(#REF!,القائمة!$D$2:$E$6,2,0),"") ->  | I83: =IF(G83=القائمة!$E$2,VLOOKUP($H83,'النسب '!$A$2:$N$23,6,0),VLOOKUP($H83,'النسب '!$A$2:$N$23,11,0)) -> 0 | J83: =IF(G83=القائمة!$E$2,VLOOKUP($H83,'النسب '!$A$3:$N$23,7,0),VLOOKUP($H83,'النسب '!$A$3:$N$23,12,0)) -> 0 | L83: 0 | M83: 0
G84: =IFERROR(VLOOKUP(#REF!,القائمة!$D$2:$E$6,2,0),"") ->  | I84: =IF(G84=القائمة!$E$2,VLOOKUP($H84,'النسب '!$A$2:$N$23,6,0),VLOOKUP($H84,'النسب '!$A$2:$N$23,11,0)) -> 0 | J84: =IF(G84=القائمة!$E$2,VLOOKUP($H84,'النسب '!$A$3:$N$23,7,0),VLOOKUP($H84,'النسب '!$A$3:$N$23,12,0)) -> 0 | L84: 0 | M84: 0
G85: =IFERROR(VLOOKUP(#REF!,القائمة!$D$2:$E$6,2,0),"") ->  | I85: =IF(G85=القائمة!$E$2,VLOOKUP($H85,'النسب '!$A$2:$N$23,6,0),VLOOKUP($H85,'النسب '!$A$2:$N$23,11,0)) -> 0 | J85: =IF(G85=القائمة!$E$2,VLOOKUP($H85,'النسب '!$A$3:$N$23,7,0),VLOOKUP($H85,'النسب '!$A$3:$N$23,12,0)) -> 0 | L85: 0 | M85: 0
G86: =IFERROR(VLOOKUP(#REF!,القائمة!$D$2:$E$6,2,0),"") ->  | I86: =IF(G86=القائمة!$E$2,VLOOKUP($H86,'النسب '!$A$2:$N$23,6,0),VLOOKUP($H86,'النسب '!$A$2:$N$23,11,0)) -> 0 | J86: =IF(G86=القائمة!$E$2,VLOOKUP($H86,'النسب '!$A$3:$N$23,7,0),VLOOKUP($H86,'النسب '!$A$3:$N$23,12,0)) -> 0 | L86: 0 | M86: 0
G87: =IFERROR(VLOOKUP(#REF!,القائمة!$D$2:$E$6,2,0),"") ->  | I87: =IF(G87=القائمة!$E$2,VLOOKUP($H87,'النسب '!$A$2:$N$23,6,0),VLOOKUP($H87,'النسب '!$A$2:$N$23,11,0)) -> 0 | J87: =IF(G87=القائمة!$E$2,VLOOKUP($H87,'النسب '!$A$3:$N$23,7,0),VLOOKUP($H87,'النسب '!$A$3:$N$23,12,0)) -> 0 | L87: 0 | M87: 0
G88: =IFERROR(VLOOKUP(#REF!,القائمة!$D$2:$E$6,2,0),"") ->  | I88: =IF(G88=القائمة!$E$2,VLOOKUP($H88,'النسب '!$A$2:$N$23,6,0),VLOOKUP($H88,'النسب '!$A$2:$N$23,11,0)) -> 0 | J88: =IF(G88=القائمة!$E$2,VLOOKUP($H88,'النسب '!$A$3:$N$23,7,0),VLOOKUP($H88,'النسب '!$A$3:$N$23,12,0)) -> 0 | L88: 0 | M88: 0
G89: =IFERROR(VLOOKUP(#REF!,القائمة!$D$2:$E$6,2,0),"") ->  | I89: =IF(G89=القائمة!$E$2,VLOOKUP($H89,'النسب '!$A$2:$N$23,6,0),VLOOKUP($H89,'النسب '!$A$2:$N$23,11,0)) -> 0 | J89: =IF(G89=القائمة!$E$2,VLOOKUP($H89,'النسب '!$A$3:$N$23,7,0),VLOOKUP($H89,'النسب '!$A$3:$N$23,12,0)) -> 0 | L89: 0 | M89: 0
G90: =IFERROR(VLOOKUP(#REF!,القائمة!$D$2:$E$6,2,0),"") ->  | I90: =IF(G90=القائمة!$E$2,VLOOKUP($H90,'النسب '!$A$2:$N$23,6,0),VLOOKUP($H90,'النسب '!$A$2:$N$23,11,0)) -> 0 | J90: =IF(G90=القائمة!$E$2,VLOOKUP($H90,'النسب '!$A$3:$N$23,7,0),VLOOKUP($H90,'النسب '!$A$3:$N$23,12,0)) -> 0 | L90: 0 | M90: 0
G91: =IFERROR(VLOOKUP(#REF!,القائمة!$D$2:$E$6,2,0),"") ->  | I91: =IF(G91=القائمة!$E$2,VLOOKUP($H91,'النسب '!$A$2:$N$23,6,0),VLOOKUP($H91,'النسب '!$A$2:$N$23,11,0)) -> 0 | J91: =IF(G91=القائمة!$E$2,VLOOKUP($H91,'النسب '!$A$3:$N$23,7,0),VLOOKUP($H91,'النسب '!$A$3:$N$23,12,0)) -> 0 | L91: 0 | M91: 0
G92: =IFERROR(VLOOKUP(#REF!,القائمة!$D$2:$E$6,2,0),"") ->  | I92: =IF(G92=القائمة!$E$2,VLOOKUP($H92,'النسب '!$A$2:$N$23,6,0),VLOOKUP($H92,'النسب '!$A$2:$N$23,11,0)) -> 0 | J92: =IF(G92=القائمة!$E$2,VLOOKUP($H92,'النسب '!$A$3:$N$23,7,0),VLOOKUP($H92,'النسب '!$A$3:$N$23,12,0)) -> 0 | L92: 0 | M92: =+J92 -> 0
G93: =IFERROR(VLOOKUP(#REF!,القائمة!$D$2:$E$6,2,0),"") ->  | I93: =IF(G93=القائمة!$E$2,VLOOKUP($H93,'النسب '!$A$2:$N$23,6,0),VLOOKUP($H93,'النسب '!$A$2:$N$23,11,0)) -> 0 | J93: =IF(G93=القائمة!$E$2,VLOOKUP($H93,'النسب '!$A$3:$N$23,7,0),VLOOKUP($H93,'النسب '!$A$3:$N$23,12,0)) -> 0 | L93: 0 | M93: 0
G94: =IFERROR(VLOOKUP(#REF!,القائمة!$D$2:$E$6,2,0),"") ->  | I94: =IF(G94=القائمة!$E$2,VLOOKUP($H94,'النسب '!$A$2:$N$23,6,0),VLOOKUP($H94,'النسب '!$A$2:$N$23,11,0)) -> 0 | J94: =IF(G94=القائمة!$E$2,VLOOKUP($H94,'النسب '!$A$3:$N$23,7,0),VLOOKUP($H94,'النسب '!$A$3:$N$23,12,0)) -> 0 | L94: 0 | M94: 0
G95: =IFERROR(VLOOKUP(#REF!,القائمة!$D$2:$E$6,2,0),"") ->  | I95: =IF(G95=القائمة!$E$2,VLOOKUP($H95,'النسب '!$A$2:$N$23,6,0),VLOOKUP($H95,'النسب '!$A$2:$N$23,11,0)) -> 0 | J95: =IF(G95=القائمة!$E$2,VLOOKUP($H95,'النسب '!$A$3:$N$23,7,0),VLOOKUP($H95,'النسب '!$A$3:$N$23,12,0)) -> 0 | L95: 0 | M95: 0
G96: =IFERROR(VLOOKUP(#REF!,القائمة!$D$2:$E$6,2,0),"") ->  | I96: =IF(G96=القائمة!$E$2,VLOOKUP($H96,'النسب '!$A$2:$N$23,6,0),VLOOKUP($H96,'النسب '!$A$2:$N$23,11,0)) -> 0 | J96: =IF(G96=القائمة!$E$2,VLOOKUP($H96,'النسب '!$A$3:$N$23,7,0),VLOOKUP($H96,'النسب '!$A$3:$N$23,12,0)) -> 0 | L96: 0 | M96: 0
G97: =IFERROR(VLOOKUP(#REF!,القائمة!$D$2:$E$6,2,0),"") ->  | I97: =IF(G97=القائمة!$E$2,VLOOKUP($H97,'النسب '!$A$2:$N$23,6,0),VLOOKUP($H97,'النسب '!$A$2:$N$23,11,0)) -> 0 | J97: =IF(G97=القائمة!$E$2,VLOOKUP($H97,'النسب '!$A$3:$N$23,7,0),VLOOKUP($H97,'النسب '!$A$3:$N$23,12,0)) -> 0 | L97: 0 | M97: =+J97 -> 0
G98: =IFERROR(VLOOKUP(#REF!,القائمة!$D$2:$E$6,2,0),"") ->  | I98: =IF(G98=القائمة!$E$2,VLOOKUP($H98,'النسب '!$A$2:$N$23,6,0),VLOOKUP($H98,'النسب '!$A$2:$N$23,11,0)) -> 0 | J98: =IF(G98=القائمة!$E$2,VLOOKUP($H98,'النسب '!$A$3:$N$23,7,0),VLOOKUP($H98,'النسب '!$A$3:$N$23,12,0)) -> 0 | L98: 0 | M98: 0
G99: =IFERROR(VLOOKUP(#REF!,القائمة!$D$2:$E$6,2,0),"") ->  | I99: =IF(G99=القائمة!$E$2,VLOOKUP($H99,'النسب '!$A$2:$N$23,6,0),VLOOKUP($H99,'النسب '!$A$2:$N$23,11,0)) -> 0 | J99: =IF(G99=القائمة!$E$2,VLOOKUP($H99,'النسب '!$A$3:$N$23,7,0),VLOOKUP($H99,'النسب '!$A$3:$N$23,12,0)) -> 0 | L99: 0 | M99: 0
G100: =IFERROR(VLOOKUP(#REF!,القائمة!$D$2:$E$6,2,0),"") ->  | I100: =IF(G100=القائمة!$E$2,VLOOKUP($H100,'النسب '!$A$2:$N$23,6,0),VLOOKUP($H100,'النسب '!$A$2:$N$23,11,0)) -> 0 | J100: =IF(G100=القائمة!$E$2,VLOOKUP($H100,'النسب '!$A$3:$N$23,7,0),VLOOKUP($H100,'النسب '!$A$3:$N$23,12,0)) -> 0 | L100: 0 | M100: 0
G101: =IFERROR(VLOOKUP(#REF!,القائمة!$D$2:$E$6,2,0),"") ->  | I101: =IF(G101=القائمة!$E$2,VLOOKUP($H101,'النسب '!$A$2:$N$23,6,0),VLOOKUP($H101,'النسب '!$A$2:$N$23,11,0)) -> 0 | J101: =IF(G101=القائمة!$E$2,VLOOKUP($H101,'النسب '!$A$3:$N$23,7,0),VLOOKUP($H101,'النسب '!$A$3:$N$23,12,0)) -> 0 | L101: 0 | M101: 0
G102: =IFERROR(VLOOKUP(#REF!,القائمة!$D$2:$E$6,2,0),"") ->  | I102: =IF(G102=القائمة!$E$2,VLOOKUP($H102,'النسب '!$A$2:$N$23,6,0),VLOOKUP($H102,'النسب '!$A$2:$N$23,11,0)) -> 0 | J102: =IF(G102=القائمة!$E$2,VLOOKUP($H102,'النسب '!$A$3:$N$23,7,0),VLOOKUP($H102,'النسب '!$A$3:$N$23,12,0)) -> 0 | L102: 0 | M102: 0
G103: =IFERROR(VLOOKUP(#REF!,القائمة!$D$2:$E$6,2,0),"") ->  | I103: =IF(G103=القائمة!$E$2,VLOOKUP($H103,'النسب '!$A$2:$N$23,6,0),VLOOKUP($H103,'النسب '!$A$2:$N$23,11,0)) -> 0 | J103: =IF(G103=القائمة!$E$2,VLOOKUP($H103,'النسب '!$A$3:$N$23,7,0),VLOOKUP($H103,'النسب '!$A$3:$N$23,12,0)) -> 0 | L103: 0 | M103: 0
G104: =IFERROR(VLOOKUP(#REF!,القائمة!$D$2:$E$6,2,0),"") ->  | I104: =IF(G104=القائمة!$E$2,VLOOKUP($H104,'النسب '!$A$2:$N$23,6,0),VLOOKUP($H104,'النسب '!$A$2:$N$23,11,0)) -> 0 | J104: =IF(G104=القائمة!$E$2,VLOOKUP($H104,'النسب '!$A$3:$N$23,7,0),VLOOKUP($H104,'النسب '!$A$3:$N$23,12,0)) -> 0 | L104: 0 | M104: 0
G105: =IFERROR(VLOOKUP(#REF!,القائمة!$D$2:$E$6,2,0),"") ->  | I105: =IF(G105=القائمة!$E$2,VLOOKUP($H105,'النسب '!$A$2:$N$23,6,0),VLOOKUP($H105,'النسب '!$A$2:$N$23,11,0)) -> 0 | J105: =IF(G105=القائمة!$E$2,VLOOKUP($H105,'النسب '!$A$3:$N$23,7,0),VLOOKUP($H105,'النسب '!$A$3:$N$23,12,0)) -> 0 | L105: 0 | M105: 0
G106: =IFERROR(VLOOKUP(#REF!,القائمة!$D$2:$E$6,2,0),"") ->  | I106: =IF(G106=القائمة!$E$2,VLOOKUP($H106,'النسب '!$A$2:$N$23,6,0),VLOOKUP($H106,'النسب '!$A$2:$N$23,11,0)) -> 0 | J106: =IF(G106=القائمة!$E$2,VLOOKUP($H106,'النسب '!$A$3:$N$23,7,0),VLOOKUP($H106,'النسب '!$A$3:$N$23,12,0)) -> 0 | L106: 0 | M106: 0
G107: =IFERROR(VLOOKUP(#REF!,القائمة!$D$2:$E$6,2,0),"") ->  | I107: =IF(G107=القائمة!$E$2,VLOOKUP($H107,'النسب '!$A$2:$N$23,6,0),VLOOKUP($H107,'النسب '!$A$2:$N$23,11,0)) -> 0 | J107: =IF(G107=القائمة!$E$2,VLOOKUP($H107,'النسب '!$A$3:$N$23,7,0),VLOOKUP($H107,'النسب '!$A$3:$N$23,12,0)) -> 0 | L107: 0 | M107: 0
G108: =IFERROR(VLOOKUP(#REF!,القائمة!$D$2:$E$6,2,0),"") ->  | I108: =IF(G108=القائمة!$E$2,VLOOKUP($H108,'النسب '!$A$2:$N$23,6,0),VLOOKUP($H108,'النسب '!$A$2:$N$23,11,0)) -> 0 | J108: =IF(G108=القائمة!$E$2,VLOOKUP($H108,'النسب '!$A$3:$N$23,7,0),VLOOKUP($H108,'النسب '!$A$3:$N$23,12,0)) -> 0 | L108: 0 | M108: 0
G109: =IFERROR(VLOOKUP(#REF!,القائمة!$D$2:$E$6,2,0),"") ->  | I109: =IF(G109=القائمة!$E$2,VLOOKUP($H109,'النسب '!$A$2:$N$23,6,0),VLOOKUP($H109,'النسب '!$A$2:$N$23,11,0)) -> 0 | J109: =IF(G109=القائمة!$E$2,VLOOKUP($H109,'النسب '!$A$3:$N$23,7,0),VLOOKUP($H109,'النسب '!$A$3:$N$23,12,0)) -> 0 | L109: 0 | M109: 0
G110: =IFERROR(VLOOKUP(#REF!,القائمة!$D$2:$E$6,2,0),"") ->  | I110: =IF(G110=القائمة!$E$2,VLOOKUP($H110,'النسب '!$A$2:$N$23,6,0),VLOOKUP($H110,'النسب '!$A$2:$N$23,11,0)) -> 0 | J110: =IF(G110=القائمة!$E$2,VLOOKUP($H110,'النسب '!$A$3:$N$23,7,0),VLOOKUP($H110,'النسب '!$A$3:$N$23,12,0)) -> 0 | L110: 0 | M110: 0
G111: =IFERROR(VLOOKUP(#REF!,القائمة!$D$2:$E$6,2,0),"") ->  | I111: =IF(G111=القائمة!$E$2,VLOOKUP($H111,'النسب '!$A$2:$N$23,6,0),VLOOKUP($H111,'النسب '!$A$2:$N$23,11,0)) -> 0 | J111: =IF(G111=القائمة!$E$2,VLOOKUP($H111,'النسب '!$A$3:$N$23,7,0),VLOOKUP($H111,'النسب '!$A$3:$N$23,12,0)) -> 0 | L111: 0 | M111: 0
G112: =IFERROR(VLOOKUP(#REF!,القائمة!$D$2:$E$6,2,0),"") ->  | I112: =IF(G112=القائمة!$E$2,VLOOKUP($H112,'النسب '!$A$2:$N$23,6,0),VLOOKUP($H112,'النسب '!$A$2:$N$23,11,0)) -> 0 | J112: =IF(G112=القائمة!$E$2,VLOOKUP($H112,'النسب '!$A$3:$N$23,7,0),VLOOKUP($H112,'النسب '!$A$3:$N$23,12,0)) -> 0 | L112: 0 | M112: 0
G113: =IFERROR(VLOOKUP(#REF!,القائمة!$D$2:$E$6,2,0),"") ->  | I113: =IF(G113=القائمة!$E$2,VLOOKUP($H113,'النسب '!$A$2:$N$23,6,0),VLOOKUP($H113,'النسب '!$A$2:$N$23,11,0)) -> 0 | J113: =IF(G113=القائمة!$E$2,VLOOKUP($H113,'النسب '!$A$3:$N$23,7,0),VLOOKUP($H113,'النسب '!$A$3:$N$23,12,0)) -> 0 | L113: 0 | M113: 0
G114: =IFERROR(VLOOKUP(#REF!,القائمة!$D$2:$E$6,2,0),"") ->  | I114: =IF(G114=القائمة!$E$2,VLOOKUP($H114,'النسب '!$A$2:$N$23,6,0),VLOOKUP($H114,'النسب '!$A$2:$N$23,11,0)) -> 0 | J114: =IF(G114=القائمة!$E$2,VLOOKUP($H114,'النسب '!$A$3:$N$23,7,0),VLOOKUP($H114,'النسب '!$A$3:$N$23,12,0)) -> 0 | L114: 0 | M114: 0
G115: =IFERROR(VLOOKUP(#REF!,القائمة!$D$2:$E$6,2,0),"") ->  | I115: =IF(G115=القائمة!$E$2,VLOOKUP($H115,'النسب '!$A$2:$N$23,6,0),VLOOKUP($H115,'النسب '!$A$2:$N$23,11,0)) -> 0 | J115: =IF(G115=القائمة!$E$2,VLOOKUP($H115,'النسب '!$A$3:$N$23,7,0),VLOOKUP($H115,'النسب '!$A$3:$N$23,12,0)) -> 0 | L115: 0 | M115: 0
G116: =IFERROR(VLOOKUP(#REF!,القائمة!$D$2:$E$6,2,0),"") ->  | I116: =IF(G116=القائمة!$E$2,VLOOKUP($H116,'النسب '!$A$2:$N$23,6,0),VLOOKUP($H116,'النسب '!$A$2:$N$23,11,0)) -> 0 | J116: =IF(G116=القائمة!$E$2,VLOOKUP($H116,'النسب '!$A$3:$N$23,7,0),VLOOKUP($H116,'النسب '!$A$3:$N$23,12,0)) -> 0 | L116: 0 | M116: 0
G117: =IFERROR(VLOOKUP(#REF!,القائمة!$D$2:$E$6,2,0),"") ->  | I117: =IF(G117=القائمة!$E$2,VLOOKUP($H117,'النسب '!$A$2:$N$23,6,0),VLOOKUP($H117,'النسب '!$A$2:$N$23,11,0)) -> 0 | J117: =IF(G117=القائمة!$E$2,VLOOKUP($H117,'النسب '!$A$3:$N$23,7,0),VLOOKUP($H117,'النسب '!$A$3:$N$23,12,0)) -> 0 | L117: 0 | M117: 0
G118: =IFERROR(VLOOKUP(#REF!,القائمة!$D$2:$E$6,2,0),"") ->  | I118: =IF(G118=القائمة!$E$2,VLOOKUP($H118,'النسب '!$A$2:$N$23,6,0),VLOOKUP($H118,'النسب '!$A$2:$N$23,11,0)) -> 0 | J118: =IF(G118=القائمة!$E$2,VLOOKUP($H118,'النسب '!$A$3:$N$23,7,0),VLOOKUP($H118,'النسب '!$A$3:$N$23,12,0)) -> 0 | L118: 0 | M118: 0
G119: =IFERROR(VLOOKUP(#REF!,القائمة!$D$2:$E$6,2,0),"") ->  | I119: =IF(G119=القائمة!$E$2,VLOOKUP($H119,'النسب '!$A$2:$N$23,6,0),VLOOKUP($H119,'النسب '!$A$2:$N$23,11,0)) -> 0 | J119: =IF(G119=القائمة!$E$2,VLOOKUP($H119,'النسب '!$A$3:$N$23,7,0),VLOOKUP($H119,'النسب '!$A$3:$N$23,12,0)) -> 0 | L119: 0 | M119: 0
G120: =IFERROR(VLOOKUP(#REF!,القائمة!$D$2:$E$6,2,0),"") ->  | I120: =IF(G120=القائمة!$E$2,VLOOKUP($H120,'النسب '!$A$2:$N$23,6,0),VLOOKUP($H120,'النسب '!$A$2:$N$23,11,0)) -> 0 | J120: =IF(G120=القائمة!$E$2,VLOOKUP($H120,'النسب '!$A$3:$N$23,7,0),VLOOKUP($H120,'النسب '!$A$3:$N$23,12,0)) -> 0 | L120: 0 | M120: 0
G121: =IFERROR(VLOOKUP(#REF!,القائمة!$D$2:$E$6,2,0),"") ->  | I121: =IF(G121=القائمة!$E$2,VLOOKUP($H121,'النسب '!$A$2:$N$23,6,0),VLOOKUP($H121,'النسب '!$A$2:$N$23,11,0)) -> 0 | J121: =IF(G121=القائمة!$E$2,VLOOKUP($H121,'النسب '!$A$3:$N$23,7,0),VLOOKUP($H121,'النسب '!$A$3:$N$23,12,0)) -> 0 | L121: 0 | M121: 0
G122: =IFERROR(VLOOKUP(#REF!,القائمة!$D$2:$E$6,2,0),"") ->  | I122: =IF(G122=القائمة!$E$2,VLOOKUP($H122,'النسب '!$A$2:$N$23,6,0),VLOOKUP($H122,'النسب '!$A$2:$N$23,11,0)) -> 0 | J122: =IF(G122=القائمة!$E$2,VLOOKUP($H122,'النسب '!$A$3:$N$23,7,0),VLOOKUP($H122,'النسب '!$A$3:$N$23,12,0)) -> 0 | L122: 0 | M122: 0
G123: =IFERROR(VLOOKUP(#REF!,القائمة!$D$2:$E$6,2,0),"") ->  | I123: =IF(G123=القائمة!$E$2,VLOOKUP($H123,'النسب '!$A$2:$N$23,6,0),VLOOKUP($H123,'النسب '!$A$2:$N$23,11,0)) -> 0 | J123: =IF(G123=القائمة!$E$2,VLOOKUP($H123,'النسب '!$A$3:$N$23,7,0),VLOOKUP($H123,'النسب '!$A$3:$N$23,12,0)) -> 0 | L123: 0 | M123: 0
G124: =IFERROR(VLOOKUP(#REF!,القائمة!$D$2:$E$6,2,0),"") ->  | I124: =IF(G124=القائمة!$E$2,VLOOKUP($H124,'النسب '!$A$2:$N$23,6,0),VLOOKUP($H124,'النسب '!$A$2:$N$23,11,0)) -> 0 | J124: =IF(G124=القائمة!$E$2,VLOOKUP($H124,'النسب '!$A$3:$N$23,7,0),VLOOKUP($H124,'النسب '!$A$3:$N$23,12,0)) -> 0 | L124: 0 | M124: 0
G125: =IFERROR(VLOOKUP(#REF!,القائمة!$D$2:$E$6,2,0),"") ->  | I125: =IF(G125=القائمة!$E$2,VLOOKUP($H125,'النسب '!$A$2:$N$23,6,0),VLOOKUP($H125,'النسب '!$A$2:$N$23,11,0)) -> 0 | J125: =IF(G125=القائمة!$E$2,VLOOKUP($H125,'النسب '!$A$3:$N$23,7,0),VLOOKUP($H125,'النسب '!$A$3:$N$23,12,0)) -> 0 | L125: 0 | M125: 0
G126: =IFERROR(VLOOKUP(#REF!,القائمة!$D$2:$E$6,2,0),"") ->  | I126: =IF(G126=القائمة!$E$2,VLOOKUP($H126,'النسب '!$A$2:$N$23,6,0),VLOOKUP($H126,'النسب '!$A$2:$N$23,11,0)) -> 0 | J126: =IF(G126=القائمة!$E$2,VLOOKUP($H126,'النسب '!$A$3:$N$23,7,0),VLOOKUP($H126,'النسب '!$A$3:$N$23,12,0)) -> 0 | L126: 0 | M126: 0
G127: =IFERROR(VLOOKUP(#REF!,القائمة!$D$2:$E$6,2,0),"") ->  | I127: =IF(G127=القائمة!$E$2,VLOOKUP($H127,'النسب '!$A$2:$N$23,6,0),VLOOKUP($H127,'النسب '!$A$2:$N$23,11,0)) -> 0 | J127: =IF(G127=القائمة!$E$2,VLOOKUP($H127,'النسب '!$A$3:$N$23,7,0),VLOOKUP($H127,'النسب '!$A$3:$N$23,12,0)) -> 0 | L127: 0 | M127: 0
G128: =IFERROR(VLOOKUP(#REF!,القائمة!$D$2:$E$6,2,0),"") ->  | I128: =IF(G128=القائمة!$E$2,VLOOKUP($H128,'النسب '!$A$2:$N$23,6,0),VLOOKUP($H128,'النسب '!$A$2:$N$23,11,0)) -> 0 | J128: =IF(G128=القائمة!$E$2,VLOOKUP($H128,'النسب '!$A$3:$N$23,7,0),VLOOKUP($H128,'النسب '!$A$3:$N$23,12,0)) -> 0 | L128: 0 | M128: 0
G129: =IFERROR(VLOOKUP(#REF!,القائمة!$D$2:$E$6,2,0),"") ->  | I129: =IF(G129=القائمة!$E$2,VLOOKUP($H129,'النسب '!$A$2:$N$23,6,0),VLOOKUP($H129,'النسب '!$A$2:$N$23,11,0)) -> 0 | J129: =IF(G129=القائمة!$E$2,VLOOKUP($H129,'النسب '!$A$3:$N$23,7,0),VLOOKUP($H129,'النسب '!$A$3:$N$23,12,0)) -> 0 | L129: 0 | M129: 0
G130: =IFERROR(VLOOKUP(#REF!,القائمة!$D$2:$E$6,2,0),"") ->  | I130: =IF(G130=القائمة!$E$2,VLOOKUP($H130,'النسب '!$A$2:$N$23,6,0),VLOOKUP($H130,'النسب '!$A$2:$N$23,11,0)) -> 0 | J130: =IF(G130=القائمة!$E$2,VLOOKUP($H130,'النسب '!$A$3:$N$23,7,0),VLOOKUP($H130,'النسب '!$A$3:$N$23,12,0)) -> 0 | L130: 0 | M130: 0
G131: =IFERROR(VLOOKUP(#REF!,القائمة!$D$2:$E$6,2,0),"") ->  | I131: =IF(G131=القائمة!$E$2,VLOOKUP($H131,'النسب '!$A$2:$N$23,6,0),VLOOKUP($H131,'النسب '!$A$2:$N$23,11,0)) -> 0 | J131: =IF(G131=القائمة!$E$2,VLOOKUP($H131,'النسب '!$A$3:$N$23,7,0),VLOOKUP($H131,'النسب '!$A$3:$N$23,12,0)) -> 0 | L131: 0 | M131: 0
G132: =IFERROR(VLOOKUP(#REF!,القائمة!$D$2:$E$6,2,0),"") ->  | I132: =IF(G132=القائمة!$E$2,VLOOKUP($H132,'النسب '!$A$2:$N$23,6,0),VLOOKUP($H132,'النسب '!$A$2:$N$23,11,0)) -> 0 | J132: =IF(G132=القائمة!$E$2,VLOOKUP($H132,'النسب '!$A$3:$N$23,7,0),VLOOKUP($H132,'النسب '!$A$3:$N$23,12,0)) -> 0 | L132: 0 | M132: 0
G133: =IFERROR(VLOOKUP(#REF!,القائمة!$D$2:$E$6,2,0),"") ->  | I133: =IF(G133=القائمة!$E$2,VLOOKUP($H133,'النسب '!$A$2:$N$23,6,0),VLOOKUP($H133,'النسب '!$A$2:$N$23,11,0)) -> 0 | J133: =IF(G133=القائمة!$E$2,VLOOKUP($H133,'النسب '!$A$3:$N$23,7,0),VLOOKUP($H133,'النسب '!$A$3:$N$23,12,0)) -> 0 | L133: =+C133 -> 0 | M133: 0
G134: =IFERROR(VLOOKUP(#REF!,القائمة!$D$2:$E$6,2,0),"") ->  | I134: =IF(G134=القائمة!$E$2,VLOOKUP($H134,'النسب '!$A$2:$N$23,6,0),VLOOKUP($H134,'النسب '!$A$2:$N$23,11,0)) -> 0 | J134: =IF(G134=القائمة!$E$2,VLOOKUP($H134,'النسب '!$A$3:$N$23,7,0),VLOOKUP($H134,'النسب '!$A$3:$N$23,12,0)) -> 0 | L134: 0 | M134: 0
G135: =IFERROR(VLOOKUP(#REF!,القائمة!$D$2:$E$6,2,0),"") ->  | I135: =IF(G135=القائمة!$E$2,VLOOKUP($H135,'النسب '!$A$2:$N$23,6,0),VLOOKUP($H135,'النسب '!$A$2:$N$23,11,0)) -> 0 | J135: =IF(G135=القائمة!$E$2,VLOOKUP($H135,'النسب '!$A$3:$N$23,7,0),VLOOKUP($H135,'النسب '!$A$3:$N$23,12,0)) -> 0 | L135: 0 | M135: 0
G136: =IFERROR(VLOOKUP(#REF!,القائمة!$D$2:$E$6,2,0),"") ->  | I136: =IF(G136=القائمة!$E$2,VLOOKUP($H136,'النسب '!$A$2:$N$23,6,0),VLOOKUP($H136,'النسب '!$A$2:$N$23,11,0)) -> 0 | J136: =IF(G136=القائمة!$E$2,VLOOKUP($H136,'النسب '!$A$3:$N$23,7,0),VLOOKUP($H136,'النسب '!$A$3:$N$23,12,0)) -> 0 | L136: 0 | M136: 0
G137: =IFERROR(VLOOKUP(#REF!,القائمة!$D$2:$E$6,2,0),"") ->  | I137: =IF(G137=القائمة!$E$2,VLOOKUP($H137,'النسب '!$A$2:$N$23,6,0),VLOOKUP($H137,'النسب '!$A$2:$N$23,11,0)) -> 0 | J137: =IF(G137=القائمة!$E$2,VLOOKUP($H137,'النسب '!$A$3:$N$23,7,0),VLOOKUP($H137,'النسب '!$A$3:$N$23,12,0)) -> 0 | L137: 0 | M137: 0
G138: =IFERROR(VLOOKUP(#REF!,القائمة!$D$2:$E$6,2,0),"") ->  | I138: =IF(G138=القائمة!$E$2,VLOOKUP($H138,'النسب '!$A$2:$N$23,6,0),VLOOKUP($H138,'النسب '!$A$2:$N$23,11,0)) -> 0 | J138: =IF(G138=القائمة!$E$2,VLOOKUP($H138,'النسب '!$A$3:$N$23,7,0),VLOOKUP($H138,'النسب '!$A$3:$N$23,12,0)) -> 0 | L138: 0 | M138: 0
G139: =IFERROR(VLOOKUP(#REF!,القائمة!$D$2:$E$6,2,0),"") ->  | I139: =IF(G139=القائمة!$E$2,VLOOKUP($H139,'النسب '!$A$2:$N$23,6,0),VLOOKUP($H139,'النسب '!$A$2:$N$23,11,0)) -> 0 | J139: =IF(G139=القائمة!$E$2,VLOOKUP($H139,'النسب '!$A$3:$N$23,7,0),VLOOKUP($H139,'النسب '!$A$3:$N$23,12,0)) -> 0 | L139: 0 | M139: 0
G140: =IFERROR(VLOOKUP(#REF!,القائمة!$D$2:$E$6,2,0),"") ->  | I140: =IF(G140=القائمة!$E$2,VLOOKUP($H140,'النسب '!$A$2:$N$23,6,0),VLOOKUP($H140,'النسب '!$A$2:$N$23,11,0)) -> 0 | J140: =IF(G140=القائمة!$E$2,VLOOKUP($H140,'النسب '!$A$3:$N$23,7,0),VLOOKUP($H140,'النسب '!$A$3:$N$23,12,0)) -> 0 | L140: 0 | M140: 0
G141: =IFERROR(VLOOKUP(#REF!,القائمة!$D$2:$E$6,2,0),"") ->  | I141: =IF(G141=القائمة!$E$2,VLOOKUP($H141,'النسب '!$A$2:$N$23,6,0),VLOOKUP($H141,'النسب '!$A$2:$N$23,11,0)) -> 0 | J141: =IF(G141=القائمة!$E$2,VLOOKUP($H141,'النسب '!$A$3:$N$23,7,0),VLOOKUP($H141,'النسب '!$A$3:$N$23,12,0)) -> 0 | L141: 0 | M141: 0
G142: =IFERROR(VLOOKUP(#REF!,القائمة!$D$2:$E$6,2,0),"") ->  | I142: =IF(G142=القائمة!$E$2,VLOOKUP($H142,'النسب '!$A$2:$N$23,6,0),VLOOKUP($H142,'النسب '!$A$2:$N$23,11,0)) -> 0 | J142: =IF(G142=القائمة!$E$2,VLOOKUP($H142,'النسب '!$A$3:$N$23,7,0),VLOOKUP($H142,'النسب '!$A$3:$N$23,12,0)) -> 0 | L142: 0 | M142: 0
G143: =IFERROR(VLOOKUP(#REF!,القائمة!$D$2:$E$6,2,0),"") ->  | I143: =IF(G143=القائمة!$E$2,VLOOKUP($H143,'النسب '!$A$2:$N$23,6,0),VLOOKUP($H143,'النسب '!$A$2:$N$23,11,0)) -> 0 | J143: =IF(G143=القائمة!$E$2,VLOOKUP($H143,'النسب '!$A$3:$N$23,7,0),VLOOKUP($H143,'النسب '!$A$3:$N$23,12,0)) -> 0 | L143: 0 | M143: 0
G144: =IFERROR(VLOOKUP(#REF!,القائمة!$D$2:$E$6,2,0),"") ->  | I144: =IF(G144=القائمة!$E$2,VLOOKUP($H144,'النسب '!$A$2:$N$23,6,0),VLOOKUP($H144,'النسب '!$A$2:$N$23,11,0)) -> 0 | J144: =IF(G144=القائمة!$E$2,VLOOKUP($H144,'النسب '!$A$3:$N$23,7,0),VLOOKUP($H144,'النسب '!$A$3:$N$23,12,0)) -> 0 | L144: 0 | M144: 0
G145: =IFERROR(VLOOKUP(#REF!,القائمة!$D$2:$E$6,2,0),"") ->  | I145: =IF(G145=القائمة!$E$2,VLOOKUP($H145,'النسب '!$A$2:$N$23,6,0),VLOOKUP($H145,'النسب '!$A$2:$N$23,11,0)) -> 0 | J145: =IF(G145=القائمة!$E$2,VLOOKUP($H145,'النسب '!$A$3:$N$23,7,0),VLOOKUP($H145,'النسب '!$A$3:$N$23,12,0)) -> 0 | L145: 0 | M145: 0
G146: =IFERROR(VLOOKUP(#REF!,القائمة!$D$2:$E$6,2,0),"") ->  | I146: =IF(G146=القائمة!$E$2,VLOOKUP($H146,'النسب '!$A$2:$N$23,6,0),VLOOKUP($H146,'النسب '!$A$2:$N$23,11,0)) -> 0 | J146: =IF(G146=القائمة!$E$2,VLOOKUP($H146,'النسب '!$A$3:$N$23,7,0),VLOOKUP($H146,'النسب '!$A$3:$N$23,12,0)) -> 0 | L146: 0 | M146: 0
G147: =IFERROR(VLOOKUP(#REF!,القائمة!$D$2:$E$6,2,0),"") ->  | I147: =IF(G147=القائمة!$E$2,VLOOKUP($H147,'النسب '!$A$2:$N$23,6,0),VLOOKUP($H147,'النسب '!$A$2:$N$23,11,0)) -> 0 | J147: =IF(G147=القائمة!$E$2,VLOOKUP($H147,'النسب '!$A$3:$N$23,7,0),VLOOKUP($H147,'النسب '!$A$3:$N$23,12,0)) -> 0 | L147: 0 | M147: 0
G148: =IFERROR(VLOOKUP(#REF!,القائمة!$D$2:$E$6,2,0),"") ->  | I148: =IF(G148=القائمة!$E$2,VLOOKUP($H148,'النسب '!$A$2:$N$23,6,0),VLOOKUP($H148,'النسب '!$A$2:$N$23,11,0)) -> 0 | J148: =IF(G148=القائمة!$E$2,VLOOKUP($H148,'النسب '!$A$3:$N$23,7,0),VLOOKUP($H148,'النسب '!$A$3:$N$23,12,0)) -> 0 | L148: 0 | M148: 0
G149: =IFERROR(VLOOKUP(#REF!,القائمة!$D$2:$E$6,2,0),"") ->  | I149: =IF(G149=القائمة!$E$2,VLOOKUP($H149,'النسب '!$A$2:$N$23,6,0),VLOOKUP($H149,'النسب '!$A$2:$N$23,11,0)) -> 0 | J149: =IF(G149=القائمة!$E$2,VLOOKUP($H149,'النسب '!$A$3:$N$23,7,0),VLOOKUP($H149,'النسب '!$A$3:$N$23,12,0)) -> 0 | L149: 0 | M149: 0
G150: =IFERROR(VLOOKUP(#REF!,القائمة!$D$2:$E$6,2,0),"") ->  | I150: =IF(G150=القائمة!$E$2,VLOOKUP($H150,'النسب '!$A$2:$N$23,6,0),VLOOKUP($H150,'النسب '!$A$2:$N$23,11,0)) -> 0 | J150: =IF(G150=القائمة!$E$2,VLOOKUP($H150,'النسب '!$A$3:$N$23,7,0),VLOOKUP($H150,'النسب '!$A$3:$N$23,12,0)) -> 0 | L150: 0 | M150: 0
G151: =IFERROR(VLOOKUP(#REF!,القائمة!$D$2:$E$6,2,0),"") ->  | I151: =IF(G151=القائمة!$E$2,VLOOKUP($H151,'النسب '!$A$2:$N$23,6,0),VLOOKUP($H151,'النسب '!$A$2:$N$23,11,0)) -> 0 | J151: =IF(G151=القائمة!$E$2,VLOOKUP($H151,'النسب '!$A$3:$N$23,7,0),VLOOKUP($H151,'النسب '!$A$3:$N$23,12,0)) -> 0 | L151: 0 | M151: 0
G152: =IFERROR(VLOOKUP(#REF!,القائمة!$D$2:$E$6,2,0),"") ->  | I152: =IF(G152=القائمة!$E$2,VLOOKUP($H152,'النسب '!$A$2:$N$23,6,0),VLOOKUP($H152,'النسب '!$A$2:$N$23,11,0)) -> 0 | J152: =IF(G152=القائمة!$E$2,VLOOKUP($H152,'النسب '!$A$3:$N$23,7,0),VLOOKUP($H152,'النسب '!$A$3:$N$23,12,0)) -> 0 | L152: 0 | M152: 0
G153: =IFERROR(VLOOKUP(#REF!,القائمة!$D$2:$E$6,2,0),"") ->  | I153: =IF(G153=القائمة!$E$2,VLOOKUP($H153,'النسب '!$A$2:$N$23,6,0),VLOOKUP($H153,'النسب '!$A$2:$N$23,11,0)) -> 0 | J153: =IF(G153=القائمة!$E$2,VLOOKUP($H153,'النسب '!$A$3:$N$23,7,0),VLOOKUP($H153,'النسب '!$A$3:$N$23,12,0)) -> 0 | L153: 0 | M153: 0
G154: =IFERROR(VLOOKUP(#REF!,القائمة!$D$2:$E$6,2,0),"") ->  | I154: =IF(G154=القائمة!$E$2,VLOOKUP($H154,'النسب '!$A$2:$N$23,6,0),VLOOKUP($H154,'النسب '!$A$2:$N$23,11,0)) -> 0 | J154: =IF(G154=القائمة!$E$2,VLOOKUP($H154,'النسب '!$A$3:$N$23,7,0),VLOOKUP($H154,'النسب '!$A$3:$N$23,12,0)) -> 0 | L154: 0 | M154: 0
G155: =IFERROR(VLOOKUP(#REF!,القائمة!$D$2:$E$6,2,0),"") ->  | I155: =IF(G155=القائمة!$E$2,VLOOKUP($H155,'النسب '!$A$2:$N$23,6,0),VLOOKUP($H155,'النسب '!$A$2:$N$23,11,0)) -> 0 | J155: =IF(G155=القائمة!$E$2,VLOOKUP($H155,'النسب '!$A$3:$N$23,7,0),VLOOKUP($H155,'النسب '!$A$3:$N$23,12,0)) -> 0 | L155: 0 | M155: 0
G156: =IFERROR(VLOOKUP(#REF!,القائمة!$D$2:$E$6,2,0),"") ->  | I156: =IF(G156=القائمة!$E$2,VLOOKUP($H156,'النسب '!$A$2:$N$23,6,0),VLOOKUP($H156,'النسب '!$A$2:$N$23,11,0)) -> 0 | J156: =IF(G156=القائمة!$E$2,VLOOKUP($H156,'النسب '!$A$3:$N$23,7,0),VLOOKUP($H156,'النسب '!$A$3:$N$23,12,0)) -> 0 | L156: 0 | M156: 0
G157: =IFERROR(VLOOKUP(#REF!,القائمة!$D$2:$E$6,2,0),"") ->  | I157: =IF(G157=القائمة!$E$2,VLOOKUP($H157,'النسب '!$A$2:$N$23,6,0),VLOOKUP($H157,'النسب '!$A$2:$N$23,11,0)) -> 0 | J157: =IF(G157=القائمة!$E$2,VLOOKUP($H157,'النسب '!$A$3:$N$23,7,0),VLOOKUP($H157,'النسب '!$A$3:$N$23,12,0)) -> 0 | L157: 0 | M157: 0
G158: =IFERROR(VLOOKUP(#REF!,القائمة!$D$2:$E$6,2,0),"") ->  | I158: =IF(G158=القائمة!$E$2,VLOOKUP($H158,'النسب '!$A$2:$N$23,6,0),VLOOKUP($H158,'النسب '!$A$2:$N$23,11,0)) -> 0 | J158: =IF(G158=القائمة!$E$2,VLOOKUP($H158,'النسب '!$A$3:$N$23,7,0),VLOOKUP($H158,'النسب '!$A$3:$N$23,12,0)) -> 0 | L158: 0 | M158: 0
G159: =IFERROR(VLOOKUP(#REF!,القائمة!$D$2:$E$6,2,0),"") ->  | I159: =IF(G159=القائمة!$E$2,VLOOKUP($H159,'النسب '!$A$2:$N$23,6,0),VLOOKUP($H159,'النسب '!$A$2:$N$23,11,0)) -> 0 | J159: =IF(G159=القائمة!$E$2,VLOOKUP($H159,'النسب '!$A$3:$N$23,7,0),VLOOKUP($H159,'النسب '!$A$3:$N$23,12,0)) -> 0 | L159: 0 | M159: 0
G160: =IFERROR(VLOOKUP(#REF!,القائمة!$D$2:$E$6,2,0),"") ->  | I160: =IF(G160=القائمة!$E$2,VLOOKUP($H160,'النسب '!$A$2:$N$23,6,0),VLOOKUP($H160,'النسب '!$A$2:$N$23,11,0)) -> 0 | J160: =IF(G160=القائمة!$E$2,VLOOKUP($H160,'النسب '!$A$3:$N$23,7,0),VLOOKUP($H160,'النسب '!$A$3:$N$23,12,0)) -> 0 | L160: 0 | M160: 0
G161: =IFERROR(VLOOKUP(#REF!,القائمة!$D$2:$E$6,2,0),"") ->  | I161: =IF(G161=القائمة!$E$2,VLOOKUP($H161,'النسب '!$A$2:$N$23,6,0),VLOOKUP($H161,'النسب '!$A$2:$N$23,11,0)) -> 0 | J161: =IF(G161=القائمة!$E$2,VLOOKUP($H161,'النسب '!$A$3:$N$23,7,0),VLOOKUP($H161,'النسب '!$A$3:$N$23,12,0)) -> 0 | L161: 0 | M161: =+J161 -> 0
G162: =IFERROR(VLOOKUP(#REF!,القائمة!$D$2:$E$6,2,0),"") ->  | I162: =IF(G162=القائمة!$E$2,VLOOKUP($H162,'النسب '!$A$2:$N$23,6,0),VLOOKUP($H162,'النسب '!$A$2:$N$23,11,0)) -> 0 | J162: =IF(G162=القائمة!$E$2,VLOOKUP($H162,'النسب '!$A$3:$N$23,7,0),VLOOKUP($H162,'النسب '!$A$3:$N$23,12,0)) -> 0 | L162: 0 | M162: 0
G163: =IFERROR(VLOOKUP(#REF!,القائمة!$D$2:$E$6,2,0),"") ->  | I163: =IF(G163=القائمة!$E$2,VLOOKUP($H163,'النسب '!$A$2:$N$23,6,0),VLOOKUP($H163,'النسب '!$A$2:$N$23,11,0)) -> 0 | J163: =IF(G163=القائمة!$E$2,VLOOKUP($H163,'النسب '!$A$3:$N$23,7,0),VLOOKUP($H163,'النسب '!$A$3:$N$23,12,0)) -> 0 | L163: 0 | M163: 0
G164: =IFERROR(VLOOKUP(#REF!,القائمة!$D$2:$E$6,2,0),"") ->  | I164: =IF(G164=القائمة!$E$2,VLOOKUP($H164,'النسب '!$A$2:$N$23,6,0),VLOOKUP($H164,'النسب '!$A$2:$N$23,11,0)) -> 0 | J164: =IF(G164=القائمة!$E$2,VLOOKUP($H164,'النسب '!$A$3:$N$23,7,0),VLOOKUP($H164,'النسب '!$A$3:$N$23,12,0)) -> 0 | L164: 0 | M164: 0
G165: =IFERROR(VLOOKUP(#REF!,القائمة!$D$2:$E$6,2,0),"") ->  | I165: =IF(G165=القائمة!$E$2,VLOOKUP($H165,'النسب '!$A$2:$N$23,6,0),VLOOKUP($H165,'النسب '!$A$2:$N$23,11,0)) -> 0 | J165: =IF(G165=القائمة!$E$2,VLOOKUP($H165,'النسب '!$A$3:$N$23,7,0),VLOOKUP($H165,'النسب '!$A$3:$N$23,12,0)) -> 0 | L165: 0 | M165: 0
G166: =IFERROR(VLOOKUP(#REF!,القائمة!$D$2:$E$6,2,0),"") ->  | I166: =IF(G166=القائمة!$E$2,VLOOKUP($H166,'النسب '!$A$2:$N$23,6,0),VLOOKUP($H166,'النسب '!$A$2:$N$23,11,0)) -> 0 | J166: =IF(G166=القائمة!$E$2,VLOOKUP($H166,'النسب '!$A$3:$N$23,7,0),VLOOKUP($H166,'النسب '!$A$3:$N$23,12,0)) -> 0 | L166: 0 | M166: 0
G167: =IFERROR(VLOOKUP(#REF!,القائمة!$D$2:$E$6,2,0),"") ->  | I167: =IF(G167=القائمة!$E$2,VLOOKUP($H167,'النسب '!$A$2:$N$23,6,0),VLOOKUP($H167,'النسب '!$A$2:$N$23,11,0)) -> 0 | J167: =IF(G167=القائمة!$E$2,VLOOKUP($H167,'النسب '!$A$3:$N$23,7,0),VLOOKUP($H167,'النسب '!$A$3:$N$23,12,0)) -> 0 | L167: 0 | M167: 0
G168: =IFERROR(VLOOKUP(#REF!,القائمة!$D$2:$E$6,2,0),"") ->  | I168: =IF(G168=القائمة!$E$2,VLOOKUP($H168,'النسب '!$A$2:$N$23,6,0),VLOOKUP($H168,'النسب '!$A$2:$N$23,11,0)) -> 0 | J168: =IF(G168=القائمة!$E$2,VLOOKUP($H168,'النسب '!$A$3:$N$23,7,0),VLOOKUP($H168,'النسب '!$A$3:$N$23,12,0)) -> 0 | L168: 0 | M168: 0
G169: =IFERROR(VLOOKUP(#REF!,القائمة!$D$2:$E$6,2,0),"") ->  | I169: =IF(G169=القائمة!$E$2,VLOOKUP($H169,'النسب '!$A$2:$N$23,6,0),VLOOKUP($H169,'النسب '!$A$2:$N$23,11,0)) -> 0 | J169: =IF(G169=القائمة!$E$2,VLOOKUP($H169,'النسب '!$A$3:$N$23,7,0),VLOOKUP($H169,'النسب '!$A$3:$N$23,12,0)) -> 0 | L169: 0 | M169: 0
G170: =IFERROR(VLOOKUP(#REF!,القائمة!$D$2:$E$6,2,0),"") ->  | I170: =IF(G170=القائمة!$E$2,VLOOKUP($H170,'النسب '!$A$2:$N$23,6,0),VLOOKUP($H170,'النسب '!$A$2:$N$23,11,0)) -> 0 | J170: =IF(G170=القائمة!$E$2,VLOOKUP($H170,'النسب '!$A$3:$N$23,7,0),VLOOKUP($H170,'النسب '!$A$3:$N$23,12,0)) -> 0 | L170: 0 | M170: 0
G171: =IFERROR(VLOOKUP(#REF!,القائمة!$D$2:$E$6,2,0),"") ->  | I171: =IF(G171=القائمة!$E$2,VLOOKUP($H171,'النسب '!$A$2:$N$23,6,0),VLOOKUP($H171,'النسب '!$A$2:$N$23,11,0)) -> 0 | J171: =IF(G171=القائمة!$E$2,VLOOKUP($H171,'النسب '!$A$3:$N$23,7,0),VLOOKUP($H171,'النسب '!$A$3:$N$23,12,0)) -> 0 | L171: 0 | M171: 0
G172: =IFERROR(VLOOKUP(#REF!,القائمة!$D$2:$E$6,2,0),"") ->  | I172: =IF(G172=القائمة!$E$2,VLOOKUP($H172,'النسب '!$A$2:$N$23,6,0),VLOOKUP($H172,'النسب '!$A$2:$N$23,11,0)) -> 0 | J172: =IF(G172=القائمة!$E$2,VLOOKUP($H172,'النسب '!$A$3:$N$23,7,0),VLOOKUP($H172,'النسب '!$A$3:$N$23,12,0)) -> 0 | L172: 0 | M172: 0
G173: =IFERROR(VLOOKUP(#REF!,القائمة!$D$2:$E$6,2,0),"") ->  | I173: =IF(G173=القائمة!$E$2,VLOOKUP($H173,'النسب '!$A$2:$N$23,6,0),VLOOKUP($H173,'النسب '!$A$2:$N$23,11,0)) -> 0 | J173: =IF(G173=القائمة!$E$2,VLOOKUP($H173,'النسب '!$A$3:$N$23,7,0),VLOOKUP($H173,'النسب '!$A$3:$N$23,12,0)) -> 0 | L173: 0 | M173: 0
G174: =IFERROR(VLOOKUP(#REF!,القائمة!$D$2:$E$6,2,0),"") ->  | I174: =IF(G174=القائمة!$E$2,VLOOKUP($H174,'النسب '!$A$2:$N$23,6,0),VLOOKUP($H174,'النسب '!$A$2:$N$23,11,0)) -> 0 | J174: =IF(G174=القائمة!$E$2,VLOOKUP($H174,'النسب '!$A$3:$N$23,7,0),VLOOKUP($H174,'النسب '!$A$3:$N$23,12,0)) -> 0 | L174: 0 | M174: 0
G175: =IFERROR(VLOOKUP(#REF!,القائمة!$D$2:$E$6,2,0),"") ->  | I175: =IF(G175=القائمة!$E$2,VLOOKUP($H175,'النسب '!$A$2:$N$23,6,0),VLOOKUP($H175,'النسب '!$A$2:$N$23,11,0)) -> 0 | J175: =IF(G175=القائمة!$E$2,VLOOKUP($H175,'النسب '!$A$3:$N$23,7,0),VLOOKUP($H175,'النسب '!$A$3:$N$23,12,0)) -> 0 | L175: 0 | M175: 0
G176: =IFERROR(VLOOKUP(#REF!,القائمة!$D$2:$E$6,2,0),"") ->  | I176: =IF(G176=القائمة!$E$2,VLOOKUP($H176,'النسب '!$A$2:$N$23,6,0),VLOOKUP($H176,'النسب '!$A$2:$N$23,11,0)) -> 0 | J176: =IF(G176=القائمة!$E$2,VLOOKUP($H176,'النسب '!$A$3:$N$23,7,0),VLOOKUP($H176,'النسب '!$A$3:$N$23,12,0)) -> 0 | L176: 0 | M176: 0
G177: =IFERROR(VLOOKUP(#REF!,القائمة!$D$2:$E$6,2,0),"") ->  | I177: =IF(G177=القائمة!$E$2,VLOOKUP($H177,'النسب '!$A$2:$N$23,6,0),VLOOKUP($H177,'النسب '!$A$2:$N$23,11,0)) -> 0 | J177: =IF(G177=القائمة!$E$2,VLOOKUP($H177,'النسب '!$A$3:$N$23,7,0),VLOOKUP($H177,'النسب '!$A$3:$N$23,12,0)) -> 0 | L177: 0 | M177: 0
G178: =IFERROR(VLOOKUP(#REF!,القائمة!$D$2:$E$6,2,0),"") ->  | I178: =IF(G178=القائمة!$E$2,VLOOKUP($H178,'النسب '!$A$2:$N$23,6,0),VLOOKUP($H178,'النسب '!$A$2:$N$23,11,0)) -> 0 | J178: =IF(G178=القائمة!$E$2,VLOOKUP($H178,'النسب '!$A$3:$N$23,7,0),VLOOKUP($H178,'النسب '!$A$3:$N$23,12,0)) -> 0 | L178: 0 | M178: 0
G179: =IFERROR(VLOOKUP(#REF!,القائمة!$D$2:$E$6,2,0),"") ->  | I179: =IF(G179=القائمة!$E$2,VLOOKUP($H179,'النسب '!$A$2:$N$23,6,0),VLOOKUP($H179,'النسب '!$A$2:$N$23,11,0)) -> 0 | J179: =IF(G179=القائمة!$E$2,VLOOKUP($H179,'النسب '!$A$3:$N$23,7,0),VLOOKUP($H179,'النسب '!$A$3:$N$23,12,0)) -> 0 | L179: 0 | M179: 0
G180: =IFERROR(VLOOKUP(#REF!,القائمة!$D$2:$E$6,2,0),"") ->  | I180: =IF(G180=القائمة!$E$2,VLOOKUP($H180,'النسب '!$A$2:$N$23,6,0),VLOOKUP($H180,'النسب '!$A$2:$N$23,11,0)) -> 0 | J180: =IF(G180=القائمة!$E$2,VLOOKUP($H180,'النسب '!$A$3:$N$23,7,0),VLOOKUP($H180,'النسب '!$A$3:$N$23,12,0)) -> 0 | L180: 0 | M180: 0
G181: =IFERROR(VLOOKUP(#REF!,القائمة!$D$2:$E$6,2,0),"") ->  | I181: =IF(G181=القائمة!$E$2,VLOOKUP($H181,'النسب '!$A$2:$N$23,6,0),VLOOKUP($H181,'النسب '!$A$2:$N$23,11,0)) -> 0 | J181: =IF(G181=القائمة!$E$2,VLOOKUP($H181,'النسب '!$A$3:$N$23,7,0),VLOOKUP($H181,'النسب '!$A$3:$N$23,12,0)) -> 0 | L181: 0 | M181: 0
G182: =IFERROR(VLOOKUP(#REF!,القائمة!$D$2:$E$6,2,0),"") ->  | I182: =IF(G182=القائمة!$E$2,VLOOKUP($H182,'النسب '!$A$2:$N$23,6,0),VLOOKUP($H182,'النسب '!$A$2:$N$23,11,0)) -> 0 | J182: =IF(G182=القائمة!$E$2,VLOOKUP($H182,'النسب '!$A$3:$N$23,7,0),VLOOKUP($H182,'النسب '!$A$3:$N$23,12,0)) -> 0 | L182: 0 | M182: 0
G183: =IFERROR(VLOOKUP(#REF!,القائمة!$D$2:$E$6,2,0),"") ->  | I183: =IF(G183=القائمة!$E$2,VLOOKUP($H183,'النسب '!$A$2:$N$23,6,0),VLOOKUP($H183,'النسب '!$A$2:$N$23,11,0)) -> 0 | J183: =IF(G183=القائمة!$E$2,VLOOKUP($H183,'النسب '!$A$3:$N$23,7,0),VLOOKUP($H183,'النسب '!$A$3:$N$23,12,0)) -> 0 | L183: 0 | M183: 0
G184: =IFERROR(VLOOKUP(#REF!,القائمة!$D$2:$E$6,2,0),"") ->  | I184: =IF(G184=القائمة!$E$2,VLOOKUP($H184,'النسب '!$A$2:$N$23,6,0),VLOOKUP($H184,'النسب '!$A$2:$N$23,11,0)) -> 0 | J184: =IF(G184=القائمة!$E$2,VLOOKUP($H184,'النسب '!$A$3:$N$23,7,0),VLOOKUP($H184,'النسب '!$A$3:$N$23,12,0)) -> 0 | L184: 0 | M184: 0
G185: =IFERROR(VLOOKUP(#REF!,القائمة!$D$2:$E$6,2,0),"") ->  | I185: =IF(G185=القائمة!$E$2,VLOOKUP($H185,'النسب '!$A$2:$N$23,6,0),VLOOKUP($H185,'النسب '!$A$2:$N$23,11,0)) -> 0 | J185: =IF(G185=القائمة!$E$2,VLOOKUP($H185,'النسب '!$A$3:$N$23,7,0),VLOOKUP($H185,'النسب '!$A$3:$N$23,12,0)) -> 0 | L185: 0 | M185: 0
G186: =IFERROR(VLOOKUP(#REF!,القائمة!$D$2:$E$6,2,0),"") ->  | I186: =IF(G186=القائمة!$E$2,VLOOKUP($H186,'النسب '!$A$2:$N$23,6,0),VLOOKUP($H186,'النسب '!$A$2:$N$23,11,0)) -> 0 | J186: =IF(G186=القائمة!$E$2,VLOOKUP($H186,'النسب '!$A$3:$N$23,7,0),VLOOKUP($H186,'النسب '!$A$3:$N$23,12,0)) -> 0 | L186: 0 | M186: 0
G187: =IFERROR(VLOOKUP(#REF!,القائمة!$D$2:$E$6,2,0),"") ->  | I187: =IF(G187=القائمة!$E$2,VLOOKUP($H187,'النسب '!$A$2:$N$23,6,0),VLOOKUP($H187,'النسب '!$A$2:$N$23,11,0)) -> 0 | J187: =IF(G187=القائمة!$E$2,VLOOKUP($H187,'النسب '!$A$3:$N$23,7,0),VLOOKUP($H187,'النسب '!$A$3:$N$23,12,0)) -> 0 | L187: 0 | M187: 0
G188: =IFERROR(VLOOKUP(#REF!,القائمة!$D$2:$E$6,2,0),"") ->  | I188: =IF(G188=القائمة!$E$2,VLOOKUP($H188,'النسب '!$A$2:$N$23,6,0),VLOOKUP($H188,'النسب '!$A$2:$N$23,11,0)) -> 0 | J188: =IF(G188=القائمة!$E$2,VLOOKUP($H188,'النسب '!$A$3:$N$23,7,0),VLOOKUP($H188,'النسب '!$A$3:$N$23,12,0)) -> 0 | L188: 0 | M188: 0
G189: =IFERROR(VLOOKUP(#REF!,القائمة!$D$2:$E$6,2,0),"") ->  | I189: =IF(G189=القائمة!$E$2,VLOOKUP($H189,'النسب '!$A$2:$N$23,6,0),VLOOKUP($H189,'النسب '!$A$2:$N$23,11,0)) -> 0 | J189: =IF(G189=القائمة!$E$2,VLOOKUP($H189,'النسب '!$A$3:$N$23,7,0),VLOOKUP($H189,'النسب '!$A$3:$N$23,12,0)) -> 0 | L189: 0 | M189: 0
G190: =IFERROR(VLOOKUP(#REF!,القائمة!$D$2:$E$6,2,0),"") ->  | I190: =IF(G190=القائمة!$E$2,VLOOKUP($H190,'النسب '!$A$2:$N$23,6,0),VLOOKUP($H190,'النسب '!$A$2:$N$23,11,0)) -> 0 | J190: =IF(G190=القائمة!$E$2,VLOOKUP($H190,'النسب '!$A$3:$N$23,7,0),VLOOKUP($H190,'النسب '!$A$3:$N$23,12,0)) -> 0 | L190: 0 | M190: 0
G191: =IFERROR(VLOOKUP(#REF!,القائمة!$D$2:$E$6,2,0),"") ->  | I191: =IF(G191=القائمة!$E$2,VLOOKUP($H191,'النسب '!$A$2:$N$23,6,0),VLOOKUP($H191,'النسب '!$A$2:$N$23,11,0)) -> 0 | J191: =IF(G191=القائمة!$E$2,VLOOKUP($H191,'النسب '!$A$3:$N$23,7,0),VLOOKUP($H191,'النسب '!$A$3:$N$23,12,0)) -> 0 | L191: 0 | M191: 0
G192: =IFERROR(VLOOKUP(#REF!,القائمة!$D$2:$E$6,2,0),"") ->  | I192: =IF(G192=القائمة!$E$2,VLOOKUP($H192,'النسب '!$A$2:$N$23,6,0),VLOOKUP($H192,'النسب '!$A$2:$N$23,11,0)) -> 0 | J192: =IF(G192=القائمة!$E$2,VLOOKUP($H192,'النسب '!$A$3:$N$23,7,0),VLOOKUP($H192,'النسب '!$A$3:$N$23,12,0)) -> 0 | L192: 0 | M192: 0
G193: =IFERROR(VLOOKUP(#REF!,القائمة!$D$2:$E$6,2,0),"") ->  | I193: =IF(G193=القائمة!$E$2,VLOOKUP($H193,'النسب '!$A$2:$N$23,6,0),VLOOKUP($H193,'النسب '!$A$2:$N$23,11,0)) -> 0 | J193: =IF(G193=القائمة!$E$2,VLOOKUP($H193,'النسب '!$A$3:$N$23,7,0),VLOOKUP($H193,'النسب '!$A$3:$N$23,12,0)) -> 0 | L193: 0 | M193: 0
G194: =IFERROR(VLOOKUP(#REF!,القائمة!$D$2:$E$6,2,0),"") ->  | I194: =IF(G194=القائمة!$E$2,VLOOKUP($H194,'النسب '!$A$2:$N$23,6,0),VLOOKUP($H194,'النسب '!$A$2:$N$23,11,0)) -> 0 | J194: =IF(G194=القائمة!$E$2,VLOOKUP($H194,'النسب '!$A$3:$N$23,7,0),VLOOKUP($H194,'النسب '!$A$3:$N$23,12,0)) -> 0 | L194: 0 | M194: 0
G195: =IFERROR(VLOOKUP(#REF!,القائمة!$D$2:$E$6,2,0),"") ->  | I195: =IF(G195=القائمة!$E$2,VLOOKUP($H195,'النسب '!$A$2:$N$23,6,0),VLOOKUP($H195,'النسب '!$A$2:$N$23,11,0)) -> 0 | J195: =IF(G195=القائمة!$E$2,VLOOKUP($H195,'النسب '!$A$3:$N$23,7,0),VLOOKUP($H195,'النسب '!$A$3:$N$23,12,0)) -> 0 | L195: 0 | M195: 0
G196: =IFERROR(VLOOKUP(#REF!,القائمة!$D$2:$E$6,2,0),"") ->  | I196: =IF(G196=القائمة!$E$2,VLOOKUP($H196,'النسب '!$A$2:$N$23,6,0),VLOOKUP($H196,'النسب '!$A$2:$N$23,11,0)) -> 0 | J196: =IF(G196=القائمة!$E$2,VLOOKUP($H196,'النسب '!$A$3:$N$23,7,0),VLOOKUP($H196,'النسب '!$A$3:$N$23,12,0)) -> 0 | L196: 0 | M196: 0
G197: =IFERROR(VLOOKUP(#REF!,القائمة!$D$2:$E$6,2,0),"") ->  | I197: =IF(G197=القائمة!$E$2,VLOOKUP($H197,'النسب '!$A$2:$N$23,6,0),VLOOKUP($H197,'النسب '!$A$2:$N$23,11,0)) -> 0 | J197: =IF(G197=القائمة!$E$2,VLOOKUP($H197,'النسب '!$A$3:$N$23,7,0),VLOOKUP($H197,'النسب '!$A$3:$N$23,12,0)) -> 0 | L197: =+C197 -> 0 | M197: 0
G198: =IFERROR(VLOOKUP(#REF!,القائمة!$D$2:$E$6,2,0),"") ->  | I198: =IF(G198=القائمة!$E$2,VLOOKUP($H198,'النسب '!$A$2:$N$23,6,0),VLOOKUP($H198,'النسب '!$A$2:$N$23,11,0)) -> 0 | J198: =IF(G198=القائمة!$E$2,VLOOKUP($H198,'النسب '!$A$3:$N$23,7,0),VLOOKUP($H198,'النسب '!$A$3:$N$23,12,0)) -> 0 | L198: 0 | M198: 0
G199: =IFERROR(VLOOKUP(#REF!,القائمة!$D$2:$E$6,2,0),"") ->  | I199: =IF(G199=القائمة!$E$2,VLOOKUP($H199,'النسب '!$A$2:$N$23,6,0),VLOOKUP($H199,'النسب '!$A$2:$N$23,11,0)) -> 0 | J199: =IF(G199=القائمة!$E$2,VLOOKUP($H199,'النسب '!$A$3:$N$23,7,0),VLOOKUP($H199,'النسب '!$A$3:$N$23,12,0)) -> 0 | L199: 0 | M199: 0
G200: =IFERROR(VLOOKUP(#REF!,القائمة!$D$2:$E$6,2,0),"") ->  | I200: =IF(G200=القائمة!$E$2,VLOOKUP($H200,'النسب '!$A$2:$N$23,6,0),VLOOKUP($H200,'النسب '!$A$2:$N$23,11,0)) -> 0 | J200: =IF(G200=القائمة!$E$2,VLOOKUP($H200,'النسب '!$A$3:$N$23,7,0),VLOOKUP($H200,'النسب '!$A$3:$N$23,12,0)) -> 0 | L200: 0 | M200: 0
G201: =IFERROR(VLOOKUP(#REF!,القائمة!$D$2:$E$6,2,0),"") ->  | I201: =IF(G201=القائمة!$E$2,VLOOKUP($H201,'النسب '!$A$2:$N$23,6,0),VLOOKUP($H201,'النسب '!$A$2:$N$23,11,0)) -> 0 | J201: =IF(G201=القائمة!$E$2,VLOOKUP($H201,'النسب '!$A$3:$N$23,7,0),VLOOKUP($H201,'النسب '!$A$3:$N$23,12,0)) -> 0 | L201: 0 | M201: 0
... 299 more rows

Sheet تفرير
B2: تقرير النسب والمبلغ خلال العمليات للمقولين | L2: =+القائمة!G2 -> خالد مهدى | M2: =+القائمة!H2 -> 66900
H3: البيان | I3: التقرير | J3: القائمة | L3: =+القائمة!G3 -> إيهاب | M3: =+القائمة!H3 -> 0
B4: المقاول | C4: العملية | D4: الكلاستر | E4: الصوبة | H4: الاجمالى القيمة | I4: =SUM(J10:J102) -> 66900 | J4: =VLOOKUP(B5,القائمة!$G$2:$H$21,2,0) -> 66900 | L4: =+القائمة!G4 -> 0 | M4: =+القائمة!H4 -> 0
B5: خالد مهدى | H5: الاجمالى العمالة | I5: =SUM($F$10:F102) -> 0 | J5: =IF(B5<>"",I4-J4,"") -> 0 | L5: =+القائمة!G5 -> 0 | M5: =+القائمة!H5 -> 0
E6: المبلغ | F6: =NoToTxt(I4,"جنيها","قرش") -> فقط ستة وستون ألف وتسعمائة جنيها | L6: =+القائمة!G6 -> 0 | M6: =+القائمة!H6 -> 0 | P6: =3.4+2.8+3.88 -> 10.08
L7: =+القائمة!G7 -> 0 | M7: =+القائمة!H7 -> 0 | P7: 1700
L8: =+القائمة!G8 -> 0 | M8: =+القائمة!H8 -> 0 | P8: =+P6*P7 -> 17136
B9: التاريخ | C9: المقاول | D9: الكلاستر | E9: الصوبة | F9: عدد العمال | G9: العمل | H9: النسبة يدوى | I9: العمل من صفحة النسبة | J9: القيمة المستحقة من صفحة النسبة | L9: =+القائمة!G9 -> 0 | M9: =+القائمة!H9 -> 0
B10: 2019-08-28 | C10: خالد مهدى | D10: 56 | G10: 1حفر وردم 10%0 | H10: 1 | I10: 10 | J10: 4000 | L10: =+القائمة!G10 -> 0 | M10: =+القائمة!H10 -> 0
B11: 2019-08-28 | C11: خالد مهدى | D11: 56 | G11: 2بناء ومحارة وعزل40%0 | H11: 0.75 | I11: 30 | J11: 12000 | L11: =+القائمة!G11 -> 0 | M11: =+القائمة!H11 -> 0
B12: 2019-08-28 | C12: خالد مهدى | D12: 56 | G12: 3عـــــــــــــــــزل35%0 | H12: 0.45 | I12: 15.75 | J12: 6300 | L12: =+القائمة!G12 -> 0 | M12: =+القائمة!H12 -> 0 | O12: =2000+1500 -> 3500 | P12: =+M12+O12 -> 3500
B13: 2019-08-28 | C13: خالد مهدى | D13: 57 | G13: 1حفر وردم 10%0 | H13: 1 | I13: 10 | J13: 4000 | L13: =+القائمة!G13 -> 0 | M13: =+القائمة!H13 -> 0
B14: 2019-08-28 | C14: خالد مهدى | D14: 57 | G14: 2بناء ومحارة وعزل40%0 | H14: 0.75 | I14: 30 | J14: 12000 | L14: =+القائمة!G14 -> 0 | M14: =+القائمة!H14 -> 0
B15: 2019-08-28 | C15: خالد مهدى | D15: 57 | G15: 3عـــــــــــــــــزل35%0 | H15: 0.45 | I15: 15.75 | J15: 6300 | L15: =+القائمة!G15 -> 0 | M15: =+القائمة!H15 -> 0
B16: 2019-08-28 | C16: خالد مهدى | D16: 58 | G16: 1حفر وردم 10%0 | H16: 1 | I16: 10 | J16: 4000 | L16: =+القائمة!G16 -> 0 | M16: =+القائمة!H16 -> 0
B17: 2019-08-28 | C17: خالد مهدى | D17: 58 | G17: 2بناء ومحارة وعزل40%0 | H17: 0.75 | I17: 30 | J17: 12000 | L17: =+القائمة!G17 -> 0 | M17: =+القائمة!H17 -> 0
B18: 2019-08-28 | C18: خالد مهدى | D18: 58 | G18: 3عـــــــــــــــــزل35%0 | H18: 0.45 | I18: 15.75 | J18: 6300 | L18: =+القائمة!G18 -> 0 | M18: =+القائمة!H18 -> 0
L19: =+القائمة!G19 -> 0 | M19: =+القائمة!H19 -> 0
L20: =+القائمة!G20 -> 0 | M20: =+القائمة!H20 -> 0
L21: =+القائمة!G21 -> 0 | M21: =+القائمة!H21 -> 0 | O21: =14950-6900 -> 8050 | P21: 6900 | Q21: =+O21+P21 -> 14950
L22: =+القائمة!G22 -> 0 | M22: =+القائمة!H22 -> 0
L23: =+القائمة!G23 -> 0 | M23: =+القائمة!H23 -> 0
L24: =+القائمة!G24 -> 0 | M24: =+القائمة!H24 -> 0
L25: =+القائمة!G25 -> 0 | M25: =+القائمة!H25 -> 0
L26: =+القائمة!G26 -> 0 | M26: =+القائمة!H26 -> 0
L27: =+القائمة!G27 -> 0 | M27: =+القائمة!H27 -> 0
L28: =+القائمة!G28 -> 0 | M28: =+القائمة!H28 -> 0
L29: =+القائمة!G29 -> 0 | M29: =+القائمة!H29 -> 0
L30: =+القائمة!G30 -> 0 | M30: =+القائمة!H30 -> 0
L31: =+القائمة!G31 -> 0 | M31: =+القائمة!H31 -> 0
L32: =+القائمة!G32 -> 0 | M32: =+القائمة!H32 -> 0
L33: =+القائمة!G33 -> 0 | M33: =+القائمة!H33 -> 0
L34: =+القائمة!G34 -> 0 | M34: =+القائمة!H34 -> 0
L35: =+القائمة!G35 -> 0 | M35: =+القائمة!H35 -> 0
L36: =+القائمة!G36 -> 0 | M36: =+القائمة!H36 -> 0
L37: =+القائمة!G37 -> 0 | M37: =+القائمة!H37 -> 0
L38: =+القائمة!G38 -> 0 | M38: =+القائمة!H38 -> 0
L39: =+القائمة!G39 -> 0 | M39: =+القائمة!H39 -> 0
L40: =+القائمة!G40 -> 0 | M40: =+القائمة!H40 -> 0
L41: =+القائمة!G41 -> 0 | M41: =+القائمة!H41 -> 0
L42: =+القائمة!G42 -> 0 | M42: =+القائمة!H42 -> 0
L43: =+القائمة!G43 -> 0 | M43: =+القائمة!H43 -> 0
L44: =+القائمة!G44 -> 0 | M44: =+القائمة!H44 -> 0
L45: =+القائمة!G45 -> 0 | M45: =+القائمة!H45 -> 0
L46: =+القائمة!G46 -> 0 | M46: =+القائمة!H46 -> 0
L47: =+القائمة!G47 -> 0 | M47: =+القائمة!H47 -> 0
L48: =+القائمة!G48 -> 0 | M48: =+القائمة!H48 -> 0
L49: =+القائمة!G49 -> 0 | M49: =+القائمة!H49 -> 0
L50: =+القائمة!G50 -> 0 | M50: =+القائمة!H50 -> 0
L51: =+القائمة!G51 -> 0 | M51: =+القائمة!H51 -> 0
L52: =+القائمة!G52 -> 0 | M52: =+القائمة!H52 -> 0
L53: =+القائمة!G53 -> 0 | M53: =+القائمة!H53 -> 0
L54: =+القائمة!G54 -> 0 | M54: =+القائمة!H54 -> 0
L55: =+القائمة!G55 -> 0 | M55: =+القائمة!H55 -> 0
L56: =+القائمة!G56 -> 0 | M56: =+القائمة!H56 -> 0
L57: =+القائمة!G57 -> 0 | M57: =+القائمة!H57 -> 0
L58: =+القائمة!G58 -> 0 | M58: =+القائمة!H58 -> 0
L59: =+القائمة!G59 -> 0 | M59: =+القائمة!H59 -> 0
L60: =+القائمة!G60 -> 0 | M60: =+القائمة!H60 -> 0
L61: =+القائمة!G61 -> 0 | M61: =+القائمة!H61 -> 0
L62: =+القائمة!G62 -> 0 | M62: =+القائمة!H62 -> 0
L63: =+القائمة!G63 -> 0 | M63: =+القائمة!H63 -> 0
L64: =+القائمة!G64 -> 0 | M64: =+القائمة!H64 -> 0
L65: =+القائمة!G65 -> 0 | M65: =+القائمة!H65 -> 0
L66: =+القائمة!G66 -> 0 | M66: =+القائمة!H66 -> 0
L67: =+القائمة!G67 -> 0 | M67: =+القائمة!H67 -> 0
L68: =+القائمة!G68 -> 0 | M68: =+القائمة!H68 -> 0
L69: =+القائمة!G69 -> 0 | M69: =+القائمة!H69 -> 0
L70: =+القائمة!G70 -> 0 | M70: =+القائمة!H70 -> 0
L71: =+القائمة!G71 -> 0 | M71: =+القائمة!H71 -> 0
L72: =+القائمة!G72 -> 0 | M72: =+القائمة!H72 -> 0
L73: =+القائمة!G73 -> 0 | M73: =+القائمة!H73 -> 0
L74: =+القائمة!G74 -> 0 | M74: =+القائمة!H74 -> 0
L75: =+القائمة!G75 -> 0 | M75: =+القائمة!H75 -> 0
L76: =+القائمة!G76 -> 0 | M76: =+القائمة!H76 -> 0
L77: =+القائمة!G77 -> 0 | M77: =+القائمة!H77 -> 0
L78: =+القائمة!G78 -> 0 | M78: =+القائمة!H78 -> 0
L79: =+القائمة!G79 -> 0 | M79: =+القائمة!H79 -> 0
L80: =+القائمة!G80 -> 0 | M80: =+القائمة!H80 -> 0
L81: =+القائمة!G81 -> 0 | M81: =+القائمة!H81 -> 0
L82: =+القائمة!G82 -> 0 | M82: =+القائمة!H82 -> 0
L83: =+القائمة!G83 -> 0 | M83: =+القائمة!H83 -> 0
L84: =+القائمة!G84 -> 0 | M84: =+القائمة!H84 -> 0
L85: =+القائمة!G85 -> 0 | M85: =+القائمة!H85 -> 0
L86: =+القائمة!G86 -> 0 | M86: =+القائمة!H86 -> 0
L87: =+القائمة!G87 -> 0 | M87: =+القائمة!H87 -> 0
L88: =+القائمة!G88 -> 0 | M88: =+القائمة!H88 -> 0
L89: =+القائمة!G89 -> 0 | M89: =+القائمة!H89 -> 0
L90: =+القائمة!G90 -> 0 | M90: =+القائمة!H90 -> 0
L91: =+القائمة!G91 -> 0 | M91: =+القائمة!H91 -> 0
L92: =+القائمة!G92 -> 0 | M92: =+القائمة!H92 -> 0
L93: =+القائمة!G93 -> 0 | M93: =+القائمة!H93 -> 0
L94: =+القائمة!G94 -> 0 | M94: =+القائمة!H94 -> 0
L95: =+القائمة!G95 -> 0 | M95: =+القائمة!H95 -> 0
L96: =+القائمة!G96 -> 0 | M96: =+القائمة!H96 -> 0
L97: =+القائمة!G97 -> 0 | M97: =+القائمة!H97 -> 0
L98: =+القائمة!G98 -> 0 | M98: =+القائمة!H98 -> 0
L99: =+القائمة!G99 -> 0 | M99: =+القائمة!H99 -> 0
L100: =+القائمة!G100 -> 0 | M100: =+القائمة!H100 -> 0
L101: =+القائمة!G101 -> 0 | M101: =+القائمة!H101 -> 0
L102: =+القائمة!G102 -> 0 | M102: =+القائمة!H102 -> 0
